{"text_format":"1","workbook":"xlsx","n_sheets":7,"sheets":["Version Control","ErrorCSV","Main","Log","ErrorSummary","ErrorReference","CriteriaReference"],"not_rendered":{"charts":0,"images":1,"macros":1,"external_links":0,"defined_names":2,"comments":0,"pivot_tables":0},"unopened":[],"bounds":{"document_bytes":16777216,"sheet_cells":100000,"rows_first":2000,"rows_last":500,"rows_between":2000,"halvings":0,"cell_chars":16384,"cell_head_chars":4096},"cells_cut":0,"cells_raw":0,"read":"whole","date_system":"1900"}

{"sheet":"Version Control","index":0,"n_rows":10,"n_cols":3,"rows_kept":10,"cut":false,"hidden":false,"merged":[[3,0,4,0],[3,1,4,1],[3,2,4,3],[5,2,5,3],[7,2,7,3],[6,2,6,3]]}
["Version control"]
[]
[]
["Version","Date Issued","Summary Of Changes"]
[]
["1.0","13/09/2021","Initial launch"]
["1.1","30/09/2021","Added log function\nAdded Version control tab\n"]
["1.2","10/07/2023","Updated to reference CNST year 5 requirements\n"]
[]
["Copyright © 2023, NHS England"]

{"sheet":"ErrorCSV","index":1,"n_rows":1,"n_cols":25,"rows_kept":1,"cut":false,"hidden":false,"merged":[]}
["REPORT_TYPE","DESCRIPTION","CODE","NUMERATOR","DENOMINATOR","DATA_ITEM1","DATA_VALUE1","DATA_ITEM2","DATA_VALUE2","DATA_ITEM3","DATA_VALUE3","DATA_ITEM4","DATA_VALUE4","DATA_ITEM5","DATA_VALUE5","DATA_ITEM6","DATA_VALUE6","DATA_ITEM7","DATA_VALUE7","DATA_ITEM8","DATA_VALUE8","DATA_ITEM9","DATA_VALUE9","DATA_ITEM10","DATA_VALUE10"]

{"sheet":"Main","index":2,"n_rows":27,"n_cols":5,"rows_kept":27,"cut":false,"hidden":false,"merged":[[3,1,3,7],[7,1,7,9]]}
[null,"Maternity Services Data Set (MSDS) Rejection and Warning Summary Generator"]
[]
[null,"Version 1.2"]
[null,"This tool provides a summary count of validation errors in order to quickly show common data quality issues.\nIt also allows the user to focus on data quality issues that may impact upon the various metrics being measured as part of the Clinical Negligence Scheme for Trusts (CNST)."]
[]
[]
[null,"Instructions:"]
[null,"Please make sure you “Enable content” if prompted. \nInsert your MSDS data validation report onto the ‘ErrorCSV’ tab. Switch to the ‘Main’ tab and click the 'Create Error List' button.\nUse the drop-down menu to select a particular measure or to view a full summary of your validation errors. "]
[]
[]
[]
[]
[]
[null,{"$f":"INDEX(CriteriaReference!D3:D100,CriteriaReference!A1)","v":"Full summary of all validation errors"}]
[]
[]
[null,"Criteria","Standard","Construction"]
[null,{"$f":"INDEX(CriteriaReference!A3:A100,CriteriaReference!A1)","v":99},{"$f":"INDEX(CriteriaReference!B3:B100,CriteriaReference!A1)","v":"List All"},{"$f":"INDEX(CriteriaReference!C3:C100,CriteriaReference!A1)","v":"List All"}]
[]
[null,"Below are a list of the rejections and warnings in the CSV file you have loaded which can impact directly on your performance against the above criteria."]
[null,"The full construction of data quality measures including CQIM rates and CoC metrics can be found in the metadata file available in the guidance hub: "]
[null,"Guidance Hub: Metadata file."]
[null,"More information on the validations applied to your MSDS submissions can be found in the MSDS Technical Output Specification available at:"]
[null,"Implementing the Maternity Services Data Set (MSDS) v2.0 tools and guidance - NHS Digital"]
[]
[null,"Error Code","Error Message","Additional Information","Count"]
[null,1,1,"",0]

{"sheet":"Log","index":3,"n_rows":4,"n_cols":5,"rows_kept":4,"cut":false,"hidden":false,"merged":[]}
[]
[]
[null,null,null,"Log use details"]
[null,null,null,"Date","CSV lines"]

{"sheet":"ErrorSummary","index":4,"n_rows":51,"n_cols":19,"rows_kept":51,"cut":false,"hidden":true,"merged":[]}
[]
[]
[]
[]
[null,null,{"$f":"COUNTIFS(ErrorCSV!B:B,ErrorSummary!A5,ErrorCSV!C:C,ErrorSummary!B5)","v":0},{"$f":"IFERROR(VLOOKUP(B5&\" - \"&A5,ErrorReference!A:C,3,FALSE),\"\")","v":""},"Criteria 1","Criteria 2","Criteria 3","Criteria 4","Criteria 5","Criteria 6","Criteria 7","Criteria 8","Criteria 9","Criteria 10","Criteria 11","Crtieria 12","Criteria 13","Criteria 14","Criteria 15"]
[1,1,{"$f":"COUNTIFS(ErrorCSV!B:B,ErrorSummary!A6,ErrorCSV!C:C,ErrorSummary!B6)","v":0},{"$f":"IFERROR(VLOOKUP(B6&\" - \"&A6,ErrorReference!A:C,3,FALSE),\"\")","v":""},{"$f":"IFERROR(VLOOKUP(B6&\" - \"&A6,ErrorReference!A:R,4,FALSE),\"\")","v":""},{"$f":"IFERROR(VLOOKUP(B6&\" - \"&A6,ErrorReference!A:R,5,FALSE),\"\")","v":""},{"$f":"IFERROR(VLOOKUP(B6&\" - \"&A6,ErrorReference!A:R,6,FALSE),\"\")","v":""},{"$f":"IFERROR(VLOOKUP(B6&\" - \"&A6,ErrorReference!A:R,7,FALSE),\"\")","v":""},{"$f":"IFERROR(VLOOKUP(B6&\" - \"&A6,ErrorReference!A:R,8,FALSE),\"\")","v":""},{"$f":"IFERROR(VLOOKUP(B6&\" - \"&A6,ErrorReference!A:R,9,FALSE),\"\")","v":""},{"$f":"IFERROR(VLOOKUP(B6&\" - \"&A6,ErrorReference!A:R,10,FALSE),\"\")","v":""},{"$f":"IFERROR(VLOOKUP(B6&\" - \"&A6,ErrorReference!A:R,11,FALSE),\"\")","v":""},{"$f":"IFERROR(VLOOKUP(B6&\" - \"&A6,ErrorReference!A:R,12,FALSE),\"\")","v":""},{"$f":"IFERROR(VLOOKUP(B6&\" - \"&A6,ErrorReference!A:R,13,FALSE),\"\")","v":""},{"$f":"IFERROR(VLOOKUP(B6&\" - \"&A6,ErrorReference!A:R,14,FALSE),\"\")","v":""},{"$f":"IFERROR(VLOOKUP(B6&\" - \"&A6,ErrorReference!A:R,15,FALSE),\"\")","v":""},{"$f":"IFERROR(VLOOKUP(B6&\" - \"&A6,ErrorReference!A:R,16,FALSE),\"\")","v":""},{"$f":"IFERROR(VLOOKUP(B6&\" - \"&A6,ErrorReference!A:R,17,FALSE),\"\")","v":""},{"$f":"IFERROR(VLOOKUP(B6&\" - \"&A6,ErrorReference!A:R,18,FALSE),\"\")","v":""}]
[null,null,{"$f":"COUNTIFS(ErrorCSV!B:B,ErrorSummary!A7,ErrorCSV!C:C,ErrorSummary!B7)","v":0},{"$f":"IFERROR(VLOOKUP(B7&\" - \"&A7,ErrorReference!A:C,3,FALSE),\"\")","v":""},{"$f":"IFERROR(VLOOKUP(B7&\" - \"&A7,ErrorReference!A:R,4,FALSE),\"\")","v":""},{"$f":"IFERROR(VLOOKUP(B7&\" - \"&A7,ErrorReference!A:R,5,FALSE),\"\")","v":""},{"$f":"IFERROR(VLOOKUP(B7&\" - \"&A7,ErrorReference!A:R,6,FALSE),\"\")","v":""},{"$f":"IFERROR(VLOOKUP(B7&\" - \"&A7,ErrorReference!A:R,7,FALSE),\"\")","v":""},{"$f":"IFERROR(VLOOKUP(B7&\" - \"&A7,ErrorReference!A:R,8,FALSE),\"\")","v":""},{"$f":"IFERROR(VLOOKUP(B7&\" - \"&A7,ErrorReference!A:R,9,FALSE),\"\")","v":""},{"$f":"IFERROR(VLOOKUP(B7&\" - \"&A7,ErrorReference!A:R,10,FALSE),\"\")","v":""},{"$f":"IFERROR(VLOOKUP(B7&\" - \"&A7,ErrorReference!A:R,11,FALSE),\"\")","v":""},{"$f":"IFERROR(VLOOKUP(B7&\" - \"&A7,ErrorReference!A:R,12,FALSE),\"\")","v":""},{"$f":"IFERROR(VLOOKUP(B7&\" - \"&A7,ErrorReference!A:R,13,FALSE),\"\")","v":""},{"$f":"IFERROR(VLOOKUP(B7&\" - \"&A7,ErrorReference!A:R,14,FALSE),\"\")","v":""},{"$f":"IFERROR(VLOOKUP(B7&\" - \"&A7,ErrorReference!A:R,15,FALSE),\"\")","v":""},{"$f":"IFERROR(VLOOKUP(B7&\" - \"&A7,ErrorReference!A:R,16,FALSE),\"\")","v":""},{"$f":"IFERROR(VLOOKUP(B7&\" - \"&A7,ErrorReference!A:R,17,FALSE),\"\")","v":""},{"$f":"IFERROR(VLOOKUP(B7&\" - \"&A7,ErrorReference!A:R,18,FALSE),\"\")","v":""}]
[null,null,null,null,{"$f":"IFERROR(VLOOKUP(B8&\" - \"&A8,ErrorReference!A:R,4,FALSE),\"\")","v":""},{"$f":"IFERROR(VLOOKUP(B8&\" - \"&A8,ErrorReference!A:R,5,FALSE),\"\")","v":""},{"$f":"IFERROR(VLOOKUP(B8&\" - \"&A8,ErrorReference!A:R,6,FALSE),\"\")","v":""},{"$f":"IFERROR(VLOOKUP(B8&\" - \"&A8,ErrorReference!A:R,7,FALSE),\"\")","v":""},{"$f":"IFERROR(VLOOKUP(B8&\" - \"&A8,ErrorReference!A:R,8,FALSE),\"\")","v":""},{"$f":"IFERROR(VLOOKUP(B8&\" - \"&A8,ErrorReference!A:R,9,FALSE),\"\")","v":""},{"$f":"IFERROR(VLOOKUP(B8&\" - \"&A8,ErrorReference!A:R,10,FALSE),\"\")","v":""},{"$f":"IFERROR(VLOOKUP(B8&\" - \"&A8,ErrorReference!A:R,11,FALSE),\"\")","v":""},{"$f":"IFERROR(VLOOKUP(B8&\" - \"&A8,ErrorReference!A:R,12,FALSE),\"\")","v":""},{"$f":"IFERROR(VLOOKUP(B8&\" - \"&A8,ErrorReference!A:R,13,FALSE),\"\")","v":""},{"$f":"IFERROR(VLOOKUP(B8&\" - \"&A8,ErrorReference!A:R,14,FALSE),\"\")","v":""},{"$f":"IFERROR(VLOOKUP(B8&\" - \"&A8,ErrorReference!A:R,15,FALSE),\"\")","v":""},{"$f":"IFERROR(VLOOKUP(B8&\" - \"&A8,ErrorReference!A:R,16,FALSE),\"\")","v":""},{"$f":"IFERROR(VLOOKUP(B8&\" - \"&A8,ErrorReference!A:R,17,FALSE),\"\")","v":""},{"$f":"IFERROR(VLOOKUP(B8&\" - \"&A8,ErrorReference!A:R,18,FALSE),\"\")","v":""}]
[null,null,null,null,{"$f":"IFERROR(VLOOKUP(B9&\" - \"&A9,ErrorReference!A:R,4,FALSE),\"\")","v":""},{"$f":"IFERROR(VLOOKUP(B9&\" - \"&A9,ErrorReference!A:R,5,FALSE),\"\")","v":""},{"$f":"IFERROR(VLOOKUP(B9&\" - \"&A9,ErrorReference!A:R,6,FALSE),\"\")","v":""},{"$f":"IFERROR(VLOOKUP(B9&\" - \"&A9,ErrorReference!A:R,7,FALSE),\"\")","v":""},{"$f":"IFERROR(VLOOKUP(B9&\" - \"&A9,ErrorReference!A:R,8,FALSE),\"\")","v":""},{"$f":"IFERROR(VLOOKUP(B9&\" - \"&A9,ErrorReference!A:R,9,FALSE),\"\")","v":""},{"$f":"IFERROR(VLOOKUP(B9&\" - \"&A9,ErrorReference!A:R,10,FALSE),\"\")","v":""},{"$f":"IFERROR(VLOOKUP(B9&\" - \"&A9,ErrorReference!A:R,11,FALSE),\"\")","v":""},{"$f":"IFERROR(VLOOKUP(B9&\" - \"&A9,ErrorReference!A:R,12,FALSE),\"\")","v":""},{"$f":"IFERROR(VLOOKUP(B9&\" - \"&A9,ErrorReference!A:R,13,FALSE),\"\")","v":""},{"$f":"IFERROR(VLOOKUP(B9&\" - \"&A9,ErrorReference!A:R,14,FALSE),\"\")","v":""},{"$f":"IFERROR(VLOOKUP(B9&\" - \"&A9,ErrorReference!A:R,15,FALSE),\"\")","v":""},{"$f":"IFERROR(VLOOKUP(B9&\" - \"&A9,ErrorReference!A:R,16,FALSE),\"\")","v":""},{"$f":"IFERROR(VLOOKUP(B9&\" - \"&A9,ErrorReference!A:R,17,FALSE),\"\")","v":""},{"$f":"IFERROR(VLOOKUP(B9&\" - \"&A9,ErrorReference!A:R,18,FALSE),\"\")","v":""}]
[null,null,null,null,{"$f":"IFERROR(VLOOKUP(B10&\" - \"&A10,ErrorReference!A:R,4,FALSE),\"\")","v":""},{"$f":"IFERROR(VLOOKUP(B10&\" - \"&A10,ErrorReference!A:R,5,FALSE),\"\")","v":""},{"$f":"IFERROR(VLOOKUP(B10&\" - \"&A10,ErrorReference!A:R,6,FALSE),\"\")","v":""},{"$f":"IFERROR(VLOOKUP(B10&\" - \"&A10,ErrorReference!A:R,7,FALSE),\"\")","v":""},{"$f":"IFERROR(VLOOKUP(B10&\" - \"&A10,ErrorReference!A:R,8,FALSE),\"\")","v":""},{"$f":"IFERROR(VLOOKUP(B10&\" - \"&A10,ErrorReference!A:R,9,FALSE),\"\")","v":""},{"$f":"IFERROR(VLOOKUP(B10&\" - \"&A10,ErrorReference!A:R,10,FALSE),\"\")","v":""},{"$f":"IFERROR(VLOOKUP(B10&\" - \"&A10,ErrorReference!A:R,11,FALSE),\"\")","v":""},{"$f":"IFERROR(VLOOKUP(B10&\" - \"&A10,ErrorReference!A:R,12,FALSE),\"\")","v":""},{"$f":"IFERROR(VLOOKUP(B10&\" - \"&A10,ErrorReference!A:R,13,FALSE),\"\")","v":""},{"$f":"IFERROR(VLOOKUP(B10&\" - \"&A10,ErrorReference!A:R,14,FALSE),\"\")","v":""},{"$f":"IFERROR(VLOOKUP(B10&\" - \"&A10,ErrorReference!A:R,15,FALSE),\"\")","v":""},{"$f":"IFERROR(VLOOKUP(B10&\" - \"&A10,ErrorReference!A:R,16,FALSE),\"\")","v":""},{"$f":"IFERROR(VLOOKUP(B10&\" - \"&A10,ErrorReference!A:R,17,FALSE),\"\")","v":""},{"$f":"IFERROR(VLOOKUP(B10&\" - \"&A10,ErrorReference!A:R,18,FALSE),\"\")","v":""}]
[null,null,null,null,{"$f":"IFERROR(VLOOKUP(B11&\" - \"&A11,ErrorReference!A:R,4,FALSE),\"\")","v":""},{"$f":"IFERROR(VLOOKUP(B11&\" - \"&A11,ErrorReference!A:R,5,FALSE),\"\")","v":""},{"$f":"IFERROR(VLOOKUP(B11&\" - \"&A11,ErrorReference!A:R,6,FALSE),\"\")","v":""},{"$f":"IFERROR(VLOOKUP(B11&\" - \"&A11,ErrorReference!A:R,7,FALSE),\"\")","v":""},{"$f":"IFERROR(VLOOKUP(B11&\" - \"&A11,ErrorReference!A:R,8,FALSE),\"\")","v":""},{"$f":"IFERROR(VLOOKUP(B11&\" - \"&A11,ErrorReference!A:R,9,FALSE),\"\")","v":""},{"$f":"IFERROR(VLOOKUP(B11&\" - \"&A11,ErrorReference!A:R,10,FALSE),\"\")","v":""},{"$f":"IFERROR(VLOOKUP(B11&\" - \"&A11,ErrorReference!A:R,11,FALSE),\"\")","v":""},{"$f":"IFERROR(VLOOKUP(B11&\" - \"&A11,ErrorReference!A:R,12,FALSE),\"\")","v":""},{"$f":"IFERROR(VLOOKUP(B11&\" - \"&A11,ErrorReference!A:R,13,FALSE),\"\")","v":""},{"$f":"IFERROR(VLOOKUP(B11&\" - \"&A11,ErrorReference!A:R,14,FALSE),\"\")","v":""},{"$f":"IFERROR(VLOOKUP(B11&\" - \"&A11,ErrorReference!A:R,15,FALSE),\"\")","v":""},{"$f":"IFERROR(VLOOKUP(B11&\" - \"&A11,ErrorReference!A:R,16,FALSE),\"\")","v":""},{"$f":"IFERROR(VLOOKUP(B11&\" - \"&A11,ErrorReference!A:R,17,FALSE),\"\")","v":""},{"$f":"IFERROR(VLOOKUP(B11&\" - \"&A11,ErrorReference!A:R,18,FALSE),\"\")","v":""}]
[null,null,null,null,{"$f":"IFERROR(VLOOKUP(B12&\" - \"&A12,ErrorReference!A:R,4,FALSE),\"\")","v":""},{"$f":"IFERROR(VLOOKUP(B12&\" - \"&A12,ErrorReference!A:R,5,FALSE),\"\")","v":""},{"$f":"IFERROR(VLOOKUP(B12&\" - \"&A12,ErrorReference!A:R,6,FALSE),\"\")","v":""},{"$f":"IFERROR(VLOOKUP(B12&\" - \"&A12,ErrorReference!A:R,7,FALSE),\"\")","v":""},{"$f":"IFERROR(VLOOKUP(B12&\" - \"&A12,ErrorReference!A:R,8,FALSE),\"\")","v":""},{"$f":"IFERROR(VLOOKUP(B12&\" - \"&A12,ErrorReference!A:R,9,FALSE),\"\")","v":""},{"$f":"IFERROR(VLOOKUP(B12&\" - \"&A12,ErrorReference!A:R,10,FALSE),\"\")","v":""},{"$f":"IFERROR(VLOOKUP(B12&\" - \"&A12,ErrorReference!A:R,11,FALSE),\"\")","v":""},{"$f":"IFERROR(VLOOKUP(B12&\" - \"&A12,ErrorReference!A:R,12,FALSE),\"\")","v":""},{"$f":"IFERROR(VLOOKUP(B12&\" - \"&A12,ErrorReference!A:R,13,FALSE),\"\")","v":""},{"$f":"IFERROR(VLOOKUP(B12&\" - \"&A12,ErrorReference!A:R,14,FALSE),\"\")","v":""},{"$f":"IFERROR(VLOOKUP(B12&\" - \"&A12,ErrorReference!A:R,15,FALSE),\"\")","v":""},{"$f":"IFERROR(VLOOKUP(B12&\" - \"&A12,ErrorReference!A:R,16,FALSE),\"\")","v":""},{"$f":"IFERROR(VLOOKUP(B12&\" - \"&A12,ErrorReference!A:R,17,FALSE),\"\")","v":""},{"$f":"IFERROR(VLOOKUP(B12&\" - \"&A12,ErrorReference!A:R,18,FALSE),\"\")","v":""}]
[null,null,null,null,{"$f":"IFERROR(VLOOKUP(B13&\" - \"&A13,ErrorReference!A:R,4,FALSE),\"\")","v":""},{"$f":"IFERROR(VLOOKUP(B13&\" - \"&A13,ErrorReference!A:R,5,FALSE),\"\")","v":""},{"$f":"IFERROR(VLOOKUP(B13&\" - \"&A13,ErrorReference!A:R,6,FALSE),\"\")","v":""},{"$f":"IFERROR(VLOOKUP(B13&\" - \"&A13,ErrorReference!A:R,7,FALSE),\"\")","v":""},{"$f":"IFERROR(VLOOKUP(B13&\" - \"&A13,ErrorReference!A:R,8,FALSE),\"\")","v":""},{"$f":"IFERROR(VLOOKUP(B13&\" - \"&A13,ErrorReference!A:R,9,FALSE),\"\")","v":""},{"$f":"IFERROR(VLOOKUP(B13&\" - \"&A13,ErrorReference!A:R,10,FALSE),\"\")","v":""},{"$f":"IFERROR(VLOOKUP(B13&\" - \"&A13,ErrorReference!A:R,11,FALSE),\"\")","v":""},{"$f":"IFERROR(VLOOKUP(B13&\" - \"&A13,ErrorReference!A:R,12,FALSE),\"\")","v":""},{"$f":"IFERROR(VLOOKUP(B13&\" - \"&A13,ErrorReference!A:R,13,FALSE),\"\")","v":""},{"$f":"IFERROR(VLOOKUP(B13&\" - \"&A13,ErrorReference!A:R,14,FALSE),\"\")","v":""},{"$f":"IFERROR(VLOOKUP(B13&\" - \"&A13,ErrorReference!A:R,15,FALSE),\"\")","v":""},{"$f":"IFERROR(VLOOKUP(B13&\" - \"&A13,ErrorReference!A:R,16,FALSE),\"\")","v":""},{"$f":"IFERROR(VLOOKUP(B13&\" - \"&A13,ErrorReference!A:R,17,FALSE),\"\")","v":""},{"$f":"IFERROR(VLOOKUP(B13&\" - \"&A13,ErrorReference!A:R,18,FALSE),\"\")","v":""}]
[null,null,null,null,{"$f":"IFERROR(VLOOKUP(B14&\" - \"&A14,ErrorReference!A:R,4,FALSE),\"\")","v":""},{"$f":"IFERROR(VLOOKUP(B14&\" - \"&A14,ErrorReference!A:R,5,FALSE),\"\")","v":""},{"$f":"IFERROR(VLOOKUP(B14&\" - \"&A14,ErrorReference!A:R,6,FALSE),\"\")","v":""},{"$f":"IFERROR(VLOOKUP(B14&\" - \"&A14,ErrorReference!A:R,7,FALSE),\"\")","v":""},{"$f":"IFERROR(VLOOKUP(B14&\" - \"&A14,ErrorReference!A:R,8,FALSE),\"\")","v":""},{"$f":"IFERROR(VLOOKUP(B14&\" - \"&A14,ErrorReference!A:R,9,FALSE),\"\")","v":""},{"$f":"IFERROR(VLOOKUP(B14&\" - \"&A14,ErrorReference!A:R,10,FALSE),\"\")","v":""},{"$f":"IFERROR(VLOOKUP(B14&\" - \"&A14,ErrorReference!A:R,11,FALSE),\"\")","v":""},{"$f":"IFERROR(VLOOKUP(B14&\" - \"&A14,ErrorReference!A:R,12,FALSE),\"\")","v":""},{"$f":"IFERROR(VLOOKUP(B14&\" - \"&A14,ErrorReference!A:R,13,FALSE),\"\")","v":""},{"$f":"IFERROR(VLOOKUP(B14&\" - \"&A14,ErrorReference!A:R,14,FALSE),\"\")","v":""},{"$f":"IFERROR(VLOOKUP(B14&\" - \"&A14,ErrorReference!A:R,15,FALSE),\"\")","v":""},{"$f":"IFERROR(VLOOKUP(B14&\" - \"&A14,ErrorReference!A:R,16,FALSE),\"\")","v":""},{"$f":"IFERROR(VLOOKUP(B14&\" - \"&A14,ErrorReference!A:R,17,FALSE),\"\")","v":""},{"$f":"IFERROR(VLOOKUP(B14&\" - \"&A14,ErrorReference!A:R,18,FALSE),\"\")","v":""}]
[null,null,null,null,{"$f":"IFERROR(VLOOKUP(B15&\" - \"&A15,ErrorReference!A:R,4,FALSE),\"\")","v":""},{"$f":"IFERROR(VLOOKUP(B15&\" - \"&A15,ErrorReference!A:R,5,FALSE),\"\")","v":""},{"$f":"IFERROR(VLOOKUP(B15&\" - \"&A15,ErrorReference!A:R,6,FALSE),\"\")","v":""},{"$f":"IFERROR(VLOOKUP(B15&\" - \"&A15,ErrorReference!A:R,7,FALSE),\"\")","v":""},{"$f":"IFERROR(VLOOKUP(B15&\" - \"&A15,ErrorReference!A:R,8,FALSE),\"\")","v":""},{"$f":"IFERROR(VLOOKUP(B15&\" - \"&A15,ErrorReference!A:R,9,FALSE),\"\")","v":""},{"$f":"IFERROR(VLOOKUP(B15&\" - \"&A15,ErrorReference!A:R,10,FALSE),\"\")","v":""},{"$f":"IFERROR(VLOOKUP(B15&\" - \"&A15,ErrorReference!A:R,11,FALSE),\"\")","v":""},{"$f":"IFERROR(VLOOKUP(B15&\" - \"&A15,ErrorReference!A:R,12,FALSE),\"\")","v":""},{"$f":"IFERROR(VLOOKUP(B15&\" - \"&A15,ErrorReference!A:R,13,FALSE),\"\")","v":""},{"$f":"IFERROR(VLOOKUP(B15&\" - \"&A15,ErrorReference!A:R,14,FALSE),\"\")","v":""},{"$f":"IFERROR(VLOOKUP(B15&\" - \"&A15,ErrorReference!A:R,15,FALSE),\"\")","v":""},{"$f":"IFERROR(VLOOKUP(B15&\" - \"&A15,ErrorReference!A:R,16,FALSE),\"\")","v":""},{"$f":"IFERROR(VLOOKUP(B15&\" - \"&A15,ErrorReference!A:R,17,FALSE),\"\")","v":""},{"$f":"IFERROR(VLOOKUP(B15&\" - \"&A15,ErrorReference!A:R,18,FALSE),\"\")","v":""}]
[null,null,null,null,{"$f":"IFERROR(VLOOKUP(B16&\" - \"&A16,ErrorReference!A:R,4,FALSE),\"\")","v":""},{"$f":"IFERROR(VLOOKUP(B16&\" - \"&A16,ErrorReference!A:R,5,FALSE),\"\")","v":""},{"$f":"IFERROR(VLOOKUP(B16&\" - \"&A16,ErrorReference!A:R,6,FALSE),\"\")","v":""},{"$f":"IFERROR(VLOOKUP(B16&\" - \"&A16,ErrorReference!A:R,7,FALSE),\"\")","v":""},{"$f":"IFERROR(VLOOKUP(B16&\" - \"&A16,ErrorReference!A:R,8,FALSE),\"\")","v":""},{"$f":"IFERROR(VLOOKUP(B16&\" - \"&A16,ErrorReference!A:R,9,FALSE),\"\")","v":""},{"$f":"IFERROR(VLOOKUP(B16&\" - \"&A16,ErrorReference!A:R,10,FALSE),\"\")","v":""},{"$f":"IFERROR(VLOOKUP(B16&\" - \"&A16,ErrorReference!A:R,11,FALSE),\"\")","v":""},{"$f":"IFERROR(VLOOKUP(B16&\" - \"&A16,ErrorReference!A:R,12,FALSE),\"\")","v":""},{"$f":"IFERROR(VLOOKUP(B16&\" - \"&A16,ErrorReference!A:R,13,FALSE),\"\")","v":""},{"$f":"IFERROR(VLOOKUP(B16&\" - \"&A16,ErrorReference!A:R,14,FALSE),\"\")","v":""},{"$f":"IFERROR(VLOOKUP(B16&\" - \"&A16,ErrorReference!A:R,15,FALSE),\"\")","v":""},{"$f":"IFERROR(VLOOKUP(B16&\" - \"&A16,ErrorReference!A:R,16,FALSE),\"\")","v":""},{"$f":"IFERROR(VLOOKUP(B16&\" - \"&A16,ErrorReference!A:R,17,FALSE),\"\")","v":""},{"$f":"IFERROR(VLOOKUP(B16&\" - \"&A16,ErrorReference!A:R,18,FALSE),\"\")","v":""}]
[null,null,null,null,{"$f":"IFERROR(VLOOKUP(B17&\" - \"&A17,ErrorReference!A:R,4,FALSE),\"\")","v":""},{"$f":"IFERROR(VLOOKUP(B17&\" - \"&A17,ErrorReference!A:R,5,FALSE),\"\")","v":""},{"$f":"IFERROR(VLOOKUP(B17&\" - \"&A17,ErrorReference!A:R,6,FALSE),\"\")","v":""},{"$f":"IFERROR(VLOOKUP(B17&\" - \"&A17,ErrorReference!A:R,7,FALSE),\"\")","v":""},{"$f":"IFERROR(VLOOKUP(B17&\" - \"&A17,ErrorReference!A:R,8,FALSE),\"\")","v":""},{"$f":"IFERROR(VLOOKUP(B17&\" - \"&A17,ErrorReference!A:R,9,FALSE),\"\")","v":""},{"$f":"IFERROR(VLOOKUP(B17&\" - \"&A17,ErrorReference!A:R,10,FALSE),\"\")","v":""},{"$f":"IFERROR(VLOOKUP(B17&\" - \"&A17,ErrorReference!A:R,11,FALSE),\"\")","v":""},{"$f":"IFERROR(VLOOKUP(B17&\" - \"&A17,ErrorReference!A:R,12,FALSE),\"\")","v":""},{"$f":"IFERROR(VLOOKUP(B17&\" - \"&A17,ErrorReference!A:R,13,FALSE),\"\")","v":""},{"$f":"IFERROR(VLOOKUP(B17&\" - \"&A17,ErrorReference!A:R,14,FALSE),\"\")","v":""},{"$f":"IFERROR(VLOOKUP(B17&\" - \"&A17,ErrorReference!A:R,15,FALSE),\"\")","v":""},{"$f":"IFERROR(VLOOKUP(B17&\" - \"&A17,ErrorReference!A:R,16,FALSE),\"\")","v":""},{"$f":"IFERROR(VLOOKUP(B17&\" - \"&A17,ErrorReference!A:R,17,FALSE),\"\")","v":""},{"$f":"IFERROR(VLOOKUP(B17&\" - \"&A17,ErrorReference!A:R,18,FALSE),\"\")","v":""}]
[null,null,null,null,{"$f":"IFERROR(VLOOKUP(B18&\" - \"&A18,ErrorReference!A:R,4,FALSE),\"\")","v":""},{"$f":"IFERROR(VLOOKUP(B18&\" - \"&A18,ErrorReference!A:R,5,FALSE),\"\")","v":""},{"$f":"IFERROR(VLOOKUP(B18&\" - \"&A18,ErrorReference!A:R,6,FALSE),\"\")","v":""},{"$f":"IFERROR(VLOOKUP(B18&\" - \"&A18,ErrorReference!A:R,7,FALSE),\"\")","v":""},{"$f":"IFERROR(VLOOKUP(B18&\" - \"&A18,ErrorReference!A:R,8,FALSE),\"\")","v":""},{"$f":"IFERROR(VLOOKUP(B18&\" - \"&A18,ErrorReference!A:R,9,FALSE),\"\")","v":""},{"$f":"IFERROR(VLOOKUP(B18&\" - \"&A18,ErrorReference!A:R,10,FALSE),\"\")","v":""},{"$f":"IFERROR(VLOOKUP(B18&\" - \"&A18,ErrorReference!A:R,11,FALSE),\"\")","v":""},{"$f":"IFERROR(VLOOKUP(B18&\" - \"&A18,ErrorReference!A:R,12,FALSE),\"\")","v":""},{"$f":"IFERROR(VLOOKUP(B18&\" - \"&A18,ErrorReference!A:R,13,FALSE),\"\")","v":""},{"$f":"IFERROR(VLOOKUP(B18&\" - \"&A18,ErrorReference!A:R,14,FALSE),\"\")","v":""},{"$f":"IFERROR(VLOOKUP(B18&\" - \"&A18,ErrorReference!A:R,15,FALSE),\"\")","v":""},{"$f":"IFERROR(VLOOKUP(B18&\" - \"&A18,ErrorReference!A:R,16,FALSE),\"\")","v":""},{"$f":"IFERROR(VLOOKUP(B18&\" - \"&A18,ErrorReference!A:R,17,FALSE),\"\")","v":""},{"$f":"IFERROR(VLOOKUP(B18&\" - \"&A18,ErrorReference!A:R,18,FALSE),\"\")","v":""}]
[null,null,null,null,{"$f":"IFERROR(VLOOKUP(B19&\" - \"&A19,ErrorReference!A:R,4,FALSE),\"\")","v":""},{"$f":"IFERROR(VLOOKUP(B19&\" - \"&A19,ErrorReference!A:R,5,FALSE),\"\")","v":""},{"$f":"IFERROR(VLOOKUP(B19&\" - \"&A19,ErrorReference!A:R,6,FALSE),\"\")","v":""},{"$f":"IFERROR(VLOOKUP(B19&\" - \"&A19,ErrorReference!A:R,7,FALSE),\"\")","v":""},{"$f":"IFERROR(VLOOKUP(B19&\" - \"&A19,ErrorReference!A:R,8,FALSE),\"\")","v":""},{"$f":"IFERROR(VLOOKUP(B19&\" - \"&A19,ErrorReference!A:R,9,FALSE),\"\")","v":""},{"$f":"IFERROR(VLOOKUP(B19&\" - \"&A19,ErrorReference!A:R,10,FALSE),\"\")","v":""},{"$f":"IFERROR(VLOOKUP(B19&\" - \"&A19,ErrorReference!A:R,11,FALSE),\"\")","v":""},{"$f":"IFERROR(VLOOKUP(B19&\" - \"&A19,ErrorReference!A:R,12,FALSE),\"\")","v":""},{"$f":"IFERROR(VLOOKUP(B19&\" - \"&A19,ErrorReference!A:R,13,FALSE),\"\")","v":""},{"$f":"IFERROR(VLOOKUP(B19&\" - \"&A19,ErrorReference!A:R,14,FALSE),\"\")","v":""},{"$f":"IFERROR(VLOOKUP(B19&\" - \"&A19,ErrorReference!A:R,15,FALSE),\"\")","v":""},{"$f":"IFERROR(VLOOKUP(B19&\" - \"&A19,ErrorReference!A:R,16,FALSE),\"\")","v":""},{"$f":"IFERROR(VLOOKUP(B19&\" - \"&A19,ErrorReference!A:R,17,FALSE),\"\")","v":""},{"$f":"IFERROR(VLOOKUP(B19&\" - \"&A19,ErrorReference!A:R,18,FALSE),\"\")","v":""}]
[null,null,null,null,{"$f":"IFERROR(VLOOKUP(B20&\" - \"&A20,ErrorReference!A:R,4,FALSE),\"\")","v":""},{"$f":"IFERROR(VLOOKUP(B20&\" - \"&A20,ErrorReference!A:R,5,FALSE),\"\")","v":""},{"$f":"IFERROR(VLOOKUP(B20&\" - \"&A20,ErrorReference!A:R,6,FALSE),\"\")","v":""},{"$f":"IFERROR(VLOOKUP(B20&\" - \"&A20,ErrorReference!A:R,7,FALSE),\"\")","v":""},{"$f":"IFERROR(VLOOKUP(B20&\" - \"&A20,ErrorReference!A:R,8,FALSE),\"\")","v":""},{"$f":"IFERROR(VLOOKUP(B20&\" - \"&A20,ErrorReference!A:R,9,FALSE),\"\")","v":""},{"$f":"IFERROR(VLOOKUP(B20&\" - \"&A20,ErrorReference!A:R,10,FALSE),\"\")","v":""},{"$f":"IFERROR(VLOOKUP(B20&\" - \"&A20,ErrorReference!A:R,11,FALSE),\"\")","v":""},{"$f":"IFERROR(VLOOKUP(B20&\" - \"&A20,ErrorReference!A:R,12,FALSE),\"\")","v":""},{"$f":"IFERROR(VLOOKUP(B20&\" - \"&A20,ErrorReference!A:R,13,FALSE),\"\")","v":""},{"$f":"IFERROR(VLOOKUP(B20&\" - \"&A20,ErrorReference!A:R,14,FALSE),\"\")","v":""},{"$f":"IFERROR(VLOOKUP(B20&\" - \"&A20,ErrorReference!A:R,15,FALSE),\"\")","v":""},{"$f":"IFERROR(VLOOKUP(B20&\" - \"&A20,ErrorReference!A:R,16,FALSE),\"\")","v":""},{"$f":"IFERROR(VLOOKUP(B20&\" - \"&A20,ErrorReference!A:R,17,FALSE),\"\")","v":""},{"$f":"IFERROR(VLOOKUP(B20&\" - \"&A20,ErrorReference!A:R,18,FALSE),\"\")","v":""}]
[null,null,null,null,{"$f":"IFERROR(VLOOKUP(B21&\" - \"&A21,ErrorReference!A:R,4,FALSE),\"\")","v":""},{"$f":"IFERROR(VLOOKUP(B21&\" - \"&A21,ErrorReference!A:R,5,FALSE),\"\")","v":""},{"$f":"IFERROR(VLOOKUP(B21&\" - \"&A21,ErrorReference!A:R,6,FALSE),\"\")","v":""},{"$f":"IFERROR(VLOOKUP(B21&\" - \"&A21,ErrorReference!A:R,7,FALSE),\"\")","v":""},{"$f":"IFERROR(VLOOKUP(B21&\" - \"&A21,ErrorReference!A:R,8,FALSE),\"\")","v":""},{"$f":"IFERROR(VLOOKUP(B21&\" - \"&A21,ErrorReference!A:R,9,FALSE),\"\")","v":""},{"$f":"IFERROR(VLOOKUP(B21&\" - \"&A21,ErrorReference!A:R,10,FALSE),\"\")","v":""},{"$f":"IFERROR(VLOOKUP(B21&\" - \"&A21,ErrorReference!A:R,11,FALSE),\"\")","v":""},{"$f":"IFERROR(VLOOKUP(B21&\" - \"&A21,ErrorReference!A:R,12,FALSE),\"\")","v":""},{"$f":"IFERROR(VLOOKUP(B21&\" - \"&A21,ErrorReference!A:R,13,FALSE),\"\")","v":""},{"$f":"IFERROR(VLOOKUP(B21&\" - \"&A21,ErrorReference!A:R,14,FALSE),\"\")","v":""},{"$f":"IFERROR(VLOOKUP(B21&\" - \"&A21,ErrorReference!A:R,15,FALSE),\"\")","v":""},{"$f":"IFERROR(VLOOKUP(B21&\" - \"&A21,ErrorReference!A:R,16,FALSE),\"\")","v":""},{"$f":"IFERROR(VLOOKUP(B21&\" - \"&A21,ErrorReference!A:R,17,FALSE),\"\")","v":""},{"$f":"IFERROR(VLOOKUP(B21&\" - \"&A21,ErrorReference!A:R,18,FALSE),\"\")","v":""}]
[null,null,null,null,{"$f":"IFERROR(VLOOKUP(B22&\" - \"&A22,ErrorReference!A:R,4,FALSE),\"\")","v":""},{"$f":"IFERROR(VLOOKUP(B22&\" - \"&A22,ErrorReference!A:R,5,FALSE),\"\")","v":""},{"$f":"IFERROR(VLOOKUP(B22&\" - \"&A22,ErrorReference!A:R,6,FALSE),\"\")","v":""},{"$f":"IFERROR(VLOOKUP(B22&\" - \"&A22,ErrorReference!A:R,7,FALSE),\"\")","v":""},{"$f":"IFERROR(VLOOKUP(B22&\" - \"&A22,ErrorReference!A:R,8,FALSE),\"\")","v":""},{"$f":"IFERROR(VLOOKUP(B22&\" - \"&A22,ErrorReference!A:R,9,FALSE),\"\")","v":""},{"$f":"IFERROR(VLOOKUP(B22&\" - \"&A22,ErrorReference!A:R,10,FALSE),\"\")","v":""},{"$f":"IFERROR(VLOOKUP(B22&\" - \"&A22,ErrorReference!A:R,11,FALSE),\"\")","v":""},{"$f":"IFERROR(VLOOKUP(B22&\" - \"&A22,ErrorReference!A:R,12,FALSE),\"\")","v":""},{"$f":"IFERROR(VLOOKUP(B22&\" - \"&A22,ErrorReference!A:R,13,FALSE),\"\")","v":""},{"$f":"IFERROR(VLOOKUP(B22&\" - \"&A22,ErrorReference!A:R,14,FALSE),\"\")","v":""},{"$f":"IFERROR(VLOOKUP(B22&\" - \"&A22,ErrorReference!A:R,15,FALSE),\"\")","v":""},{"$f":"IFERROR(VLOOKUP(B22&\" - \"&A22,ErrorReference!A:R,16,FALSE),\"\")","v":""},{"$f":"IFERROR(VLOOKUP(B22&\" - \"&A22,ErrorReference!A:R,17,FALSE),\"\")","v":""},{"$f":"IFERROR(VLOOKUP(B22&\" - \"&A22,ErrorReference!A:R,18,FALSE),\"\")","v":""}]
[null,null,null,null,{"$f":"IFERROR(VLOOKUP(B23&\" - \"&A23,ErrorReference!A:R,4,FALSE),\"\")","v":""},{"$f":"IFERROR(VLOOKUP(B23&\" - \"&A23,ErrorReference!A:R,5,FALSE),\"\")","v":""},{"$f":"IFERROR(VLOOKUP(B23&\" - \"&A23,ErrorReference!A:R,6,FALSE),\"\")","v":""},{"$f":"IFERROR(VLOOKUP(B23&\" - \"&A23,ErrorReference!A:R,7,FALSE),\"\")","v":""},{"$f":"IFERROR(VLOOKUP(B23&\" - \"&A23,ErrorReference!A:R,8,FALSE),\"\")","v":""},{"$f":"IFERROR(VLOOKUP(B23&\" - \"&A23,ErrorReference!A:R,9,FALSE),\"\")","v":""},{"$f":"IFERROR(VLOOKUP(B23&\" - \"&A23,ErrorReference!A:R,10,FALSE),\"\")","v":""},{"$f":"IFERROR(VLOOKUP(B23&\" - \"&A23,ErrorReference!A:R,11,FALSE),\"\")","v":""},{"$f":"IFERROR(VLOOKUP(B23&\" - \"&A23,ErrorReference!A:R,12,FALSE),\"\")","v":""},{"$f":"IFERROR(VLOOKUP(B23&\" - \"&A23,ErrorReference!A:R,13,FALSE),\"\")","v":""},{"$f":"IFERROR(VLOOKUP(B23&\" - \"&A23,ErrorReference!A:R,14,FALSE),\"\")","v":""},{"$f":"IFERROR(VLOOKUP(B23&\" - \"&A23,ErrorReference!A:R,15,FALSE),\"\")","v":""},{"$f":"IFERROR(VLOOKUP(B23&\" - \"&A23,ErrorReference!A:R,16,FALSE),\"\")","v":""},{"$f":"IFERROR(VLOOKUP(B23&\" - \"&A23,ErrorReference!A:R,17,FALSE),\"\")","v":""},{"$f":"IFERROR(VLOOKUP(B23&\" - \"&A23,ErrorReference!A:R,18,FALSE),\"\")","v":""}]
[null,null,null,null,{"$f":"IFERROR(VLOOKUP(B24&\" - \"&A24,ErrorReference!A:R,4,FALSE),\"\")","v":""},{"$f":"IFERROR(VLOOKUP(B24&\" - \"&A24,ErrorReference!A:R,5,FALSE),\"\")","v":""},{"$f":"IFERROR(VLOOKUP(B24&\" - \"&A24,ErrorReference!A:R,6,FALSE),\"\")","v":""},{"$f":"IFERROR(VLOOKUP(B24&\" - \"&A24,ErrorReference!A:R,7,FALSE),\"\")","v":""},{"$f":"IFERROR(VLOOKUP(B24&\" - \"&A24,ErrorReference!A:R,8,FALSE),\"\")","v":""},{"$f":"IFERROR(VLOOKUP(B24&\" - \"&A24,ErrorReference!A:R,9,FALSE),\"\")","v":""},{"$f":"IFERROR(VLOOKUP(B24&\" - \"&A24,ErrorReference!A:R,10,FALSE),\"\")","v":""},{"$f":"IFERROR(VLOOKUP(B24&\" - \"&A24,ErrorReference!A:R,11,FALSE),\"\")","v":""},{"$f":"IFERROR(VLOOKUP(B24&\" - \"&A24,ErrorReference!A:R,12,FALSE),\"\")","v":""},{"$f":"IFERROR(VLOOKUP(B24&\" - \"&A24,ErrorReference!A:R,13,FALSE),\"\")","v":""},{"$f":"IFERROR(VLOOKUP(B24&\" - \"&A24,ErrorReference!A:R,14,FALSE),\"\")","v":""},{"$f":"IFERROR(VLOOKUP(B24&\" - \"&A24,ErrorReference!A:R,15,FALSE),\"\")","v":""},{"$f":"IFERROR(VLOOKUP(B24&\" - \"&A24,ErrorReference!A:R,16,FALSE),\"\")","v":""},{"$f":"IFERROR(VLOOKUP(B24&\" - \"&A24,ErrorReference!A:R,17,FALSE),\"\")","v":""},{"$f":"IFERROR(VLOOKUP(B24&\" - \"&A24,ErrorReference!A:R,18,FALSE),\"\")","v":""}]
[null,null,null,null,{"$f":"IFERROR(VLOOKUP(B25&\" - \"&A25,ErrorReference!A:R,4,FALSE),\"\")","v":""},{"$f":"IFERROR(VLOOKUP(B25&\" - \"&A25,ErrorReference!A:R,5,FALSE),\"\")","v":""},{"$f":"IFERROR(VLOOKUP(B25&\" - \"&A25,ErrorReference!A:R,6,FALSE),\"\")","v":""},{"$f":"IFERROR(VLOOKUP(B25&\" - \"&A25,ErrorReference!A:R,7,FALSE),\"\")","v":""},{"$f":"IFERROR(VLOOKUP(B25&\" - \"&A25,ErrorReference!A:R,8,FALSE),\"\")","v":""},{"$f":"IFERROR(VLOOKUP(B25&\" - \"&A25,ErrorReference!A:R,9,FALSE),\"\")","v":""},{"$f":"IFERROR(VLOOKUP(B25&\" - \"&A25,ErrorReference!A:R,10,FALSE),\"\")","v":""},{"$f":"IFERROR(VLOOKUP(B25&\" - \"&A25,ErrorReference!A:R,11,FALSE),\"\")","v":""},{"$f":"IFERROR(VLOOKUP(B25&\" - \"&A25,ErrorReference!A:R,12,FALSE),\"\")","v":""},{"$f":"IFERROR(VLOOKUP(B25&\" - \"&A25,ErrorReference!A:R,13,FALSE),\"\")","v":""},{"$f":"IFERROR(VLOOKUP(B25&\" - \"&A25,ErrorReference!A:R,14,FALSE),\"\")","v":""},{"$f":"IFERROR(VLOOKUP(B25&\" - \"&A25,ErrorReference!A:R,15,FALSE),\"\")","v":""},{"$f":"IFERROR(VLOOKUP(B25&\" - \"&A25,ErrorReference!A:R,16,FALSE),\"\")","v":""},{"$f":"IFERROR(VLOOKUP(B25&\" - \"&A25,ErrorReference!A:R,17,FALSE),\"\")","v":""},{"$f":"IFERROR(VLOOKUP(B25&\" - \"&A25,ErrorReference!A:R,18,FALSE),\"\")","v":""}]
[null,null,null,null,{"$f":"IFERROR(VLOOKUP(B26&\" - \"&A26,ErrorReference!A:R,4,FALSE),\"\")","v":""},{"$f":"IFERROR(VLOOKUP(B26&\" - \"&A26,ErrorReference!A:R,5,FALSE),\"\")","v":""},{"$f":"IFERROR(VLOOKUP(B26&\" - \"&A26,ErrorReference!A:R,6,FALSE),\"\")","v":""},{"$f":"IFERROR(VLOOKUP(B26&\" - \"&A26,ErrorReference!A:R,7,FALSE),\"\")","v":""},{"$f":"IFERROR(VLOOKUP(B26&\" - \"&A26,ErrorReference!A:R,8,FALSE),\"\")","v":""},{"$f":"IFERROR(VLOOKUP(B26&\" - \"&A26,ErrorReference!A:R,9,FALSE),\"\")","v":""},{"$f":"IFERROR(VLOOKUP(B26&\" - \"&A26,ErrorReference!A:R,10,FALSE),\"\")","v":""},{"$f":"IFERROR(VLOOKUP(B26&\" - \"&A26,ErrorReference!A:R,11,FALSE),\"\")","v":""},{"$f":"IFERROR(VLOOKUP(B26&\" - \"&A26,ErrorReference!A:R,12,FALSE),\"\")","v":""},{"$f":"IFERROR(VLOOKUP(B26&\" - \"&A26,ErrorReference!A:R,13,FALSE),\"\")","v":""},{"$f":"IFERROR(VLOOKUP(B26&\" - \"&A26,ErrorReference!A:R,14,FALSE),\"\")","v":""},{"$f":"IFERROR(VLOOKUP(B26&\" - \"&A26,ErrorReference!A:R,15,FALSE),\"\")","v":""},{"$f":"IFERROR(VLOOKUP(B26&\" - \"&A26,ErrorReference!A:R,16,FALSE),\"\")","v":""},{"$f":"IFERROR(VLOOKUP(B26&\" - \"&A26,ErrorReference!A:R,17,FALSE),\"\")","v":""},{"$f":"IFERROR(VLOOKUP(B26&\" - \"&A26,ErrorReference!A:R,18,FALSE),\"\")","v":""}]
[null,null,null,null,{"$f":"IFERROR(VLOOKUP(B27&\" - \"&A27,ErrorReference!A:R,4,FALSE),\"\")","v":""},{"$f":"IFERROR(VLOOKUP(B27&\" - \"&A27,ErrorReference!A:R,5,FALSE),\"\")","v":""},{"$f":"IFERROR(VLOOKUP(B27&\" - \"&A27,ErrorReference!A:R,6,FALSE),\"\")","v":""},{"$f":"IFERROR(VLOOKUP(B27&\" - \"&A27,ErrorReference!A:R,7,FALSE),\"\")","v":""},{"$f":"IFERROR(VLOOKUP(B27&\" - \"&A27,ErrorReference!A:R,8,FALSE),\"\")","v":""},{"$f":"IFERROR(VLOOKUP(B27&\" - \"&A27,ErrorReference!A:R,9,FALSE),\"\")","v":""},{"$f":"IFERROR(VLOOKUP(B27&\" - \"&A27,ErrorReference!A:R,10,FALSE),\"\")","v":""},{"$f":"IFERROR(VLOOKUP(B27&\" - \"&A27,ErrorReference!A:R,11,FALSE),\"\")","v":""},{"$f":"IFERROR(VLOOKUP(B27&\" - \"&A27,ErrorReference!A:R,12,FALSE),\"\")","v":""},{"$f":"IFERROR(VLOOKUP(B27&\" - \"&A27,ErrorReference!A:R,13,FALSE),\"\")","v":""},{"$f":"IFERROR(VLOOKUP(B27&\" - \"&A27,ErrorReference!A:R,14,FALSE),\"\")","v":""},{"$f":"IFERROR(VLOOKUP(B27&\" - \"&A27,ErrorReference!A:R,15,FALSE),\"\")","v":""},{"$f":"IFERROR(VLOOKUP(B27&\" - \"&A27,ErrorReference!A:R,16,FALSE),\"\")","v":""},{"$f":"IFERROR(VLOOKUP(B27&\" - \"&A27,ErrorReference!A:R,17,FALSE),\"\")","v":""},{"$f":"IFERROR(VLOOKUP(B27&\" - \"&A27,ErrorReference!A:R,18,FALSE),\"\")","v":""}]
[null,null,null,null,{"$f":"IFERROR(VLOOKUP(B28&\" - \"&A28,ErrorReference!A:R,4,FALSE),\"\")","v":""},{"$f":"IFERROR(VLOOKUP(B28&\" - \"&A28,ErrorReference!A:R,5,FALSE),\"\")","v":""},{"$f":"IFERROR(VLOOKUP(B28&\" - \"&A28,ErrorReference!A:R,6,FALSE),\"\")","v":""},{"$f":"IFERROR(VLOOKUP(B28&\" - \"&A28,ErrorReference!A:R,7,FALSE),\"\")","v":""},{"$f":"IFERROR(VLOOKUP(B28&\" - \"&A28,ErrorReference!A:R,8,FALSE),\"\")","v":""},{"$f":"IFERROR(VLOOKUP(B28&\" - \"&A28,ErrorReference!A:R,9,FALSE),\"\")","v":""},{"$f":"IFERROR(VLOOKUP(B28&\" - \"&A28,ErrorReference!A:R,10,FALSE),\"\")","v":""},{"$f":"IFERROR(VLOOKUP(B28&\" - \"&A28,ErrorReference!A:R,11,FALSE),\"\")","v":""},{"$f":"IFERROR(VLOOKUP(B28&\" - \"&A28,ErrorReference!A:R,12,FALSE),\"\")","v":""},{"$f":"IFERROR(VLOOKUP(B28&\" - \"&A28,ErrorReference!A:R,13,FALSE),\"\")","v":""},{"$f":"IFERROR(VLOOKUP(B28&\" - \"&A28,ErrorReference!A:R,14,FALSE),\"\")","v":""},{"$f":"IFERROR(VLOOKUP(B28&\" - \"&A28,ErrorReference!A:R,15,FALSE),\"\")","v":""},{"$f":"IFERROR(VLOOKUP(B28&\" - \"&A28,ErrorReference!A:R,16,FALSE),\"\")","v":""},{"$f":"IFERROR(VLOOKUP(B28&\" - \"&A28,ErrorReference!A:R,17,FALSE),\"\")","v":""},{"$f":"IFERROR(VLOOKUP(B28&\" - \"&A28,ErrorReference!A:R,18,FALSE),\"\")","v":""}]
[null,null,null,null,{"$f":"IFERROR(VLOOKUP(B29&\" - \"&A29,ErrorReference!A:R,4,FALSE),\"\")","v":""},{"$f":"IFERROR(VLOOKUP(B29&\" - \"&A29,ErrorReference!A:R,5,FALSE),\"\")","v":""},{"$f":"IFERROR(VLOOKUP(B29&\" - \"&A29,ErrorReference!A:R,6,FALSE),\"\")","v":""},{"$f":"IFERROR(VLOOKUP(B29&\" - \"&A29,ErrorReference!A:R,7,FALSE),\"\")","v":""},{"$f":"IFERROR(VLOOKUP(B29&\" - \"&A29,ErrorReference!A:R,8,FALSE),\"\")","v":""},{"$f":"IFERROR(VLOOKUP(B29&\" - \"&A29,ErrorReference!A:R,9,FALSE),\"\")","v":""},{"$f":"IFERROR(VLOOKUP(B29&\" - \"&A29,ErrorReference!A:R,10,FALSE),\"\")","v":""},{"$f":"IFERROR(VLOOKUP(B29&\" - \"&A29,ErrorReference!A:R,11,FALSE),\"\")","v":""},{"$f":"IFERROR(VLOOKUP(B29&\" - \"&A29,ErrorReference!A:R,12,FALSE),\"\")","v":""},{"$f":"IFERROR(VLOOKUP(B29&\" - \"&A29,ErrorReference!A:R,13,FALSE),\"\")","v":""},{"$f":"IFERROR(VLOOKUP(B29&\" - \"&A29,ErrorReference!A:R,14,FALSE),\"\")","v":""},{"$f":"IFERROR(VLOOKUP(B29&\" - \"&A29,ErrorReference!A:R,15,FALSE),\"\")","v":""},{"$f":"IFERROR(VLOOKUP(B29&\" - \"&A29,ErrorReference!A:R,16,FALSE),\"\")","v":""},{"$f":"IFERROR(VLOOKUP(B29&\" - \"&A29,ErrorReference!A:R,17,FALSE),\"\")","v":""},{"$f":"IFERROR(VLOOKUP(B29&\" - \"&A29,ErrorReference!A:R,18,FALSE),\"\")","v":""}]
[null,null,null,null,{"$f":"IFERROR(VLOOKUP(B30&\" - \"&A30,ErrorReference!A:R,4,FALSE),\"\")","v":""},{"$f":"IFERROR(VLOOKUP(B30&\" - \"&A30,ErrorReference!A:R,5,FALSE),\"\")","v":""},{"$f":"IFERROR(VLOOKUP(B30&\" - \"&A30,ErrorReference!A:R,6,FALSE),\"\")","v":""},{"$f":"IFERROR(VLOOKUP(B30&\" - \"&A30,ErrorReference!A:R,7,FALSE),\"\")","v":""},{"$f":"IFERROR(VLOOKUP(B30&\" - \"&A30,ErrorReference!A:R,8,FALSE),\"\")","v":""},{"$f":"IFERROR(VLOOKUP(B30&\" - \"&A30,ErrorReference!A:R,9,FALSE),\"\")","v":""},{"$f":"IFERROR(VLOOKUP(B30&\" - \"&A30,ErrorReference!A:R,10,FALSE),\"\")","v":""},{"$f":"IFERROR(VLOOKUP(B30&\" - \"&A30,ErrorReference!A:R,11,FALSE),\"\")","v":""},{"$f":"IFERROR(VLOOKUP(B30&\" - \"&A30,ErrorReference!A:R,12,FALSE),\"\")","v":""},{"$f":"IFERROR(VLOOKUP(B30&\" - \"&A30,ErrorReference!A:R,13,FALSE),\"\")","v":""},{"$f":"IFERROR(VLOOKUP(B30&\" - \"&A30,ErrorReference!A:R,14,FALSE),\"\")","v":""},{"$f":"IFERROR(VLOOKUP(B30&\" - \"&A30,ErrorReference!A:R,15,FALSE),\"\")","v":""},{"$f":"IFERROR(VLOOKUP(B30&\" - \"&A30,ErrorReference!A:R,16,FALSE),\"\")","v":""},{"$f":"IFERROR(VLOOKUP(B30&\" - \"&A30,ErrorReference!A:R,17,FALSE),\"\")","v":""},{"$f":"IFERROR(VLOOKUP(B30&\" - \"&A30,ErrorReference!A:R,18,FALSE),\"\")","v":""}]
[null,null,null,null,{"$f":"IFERROR(VLOOKUP(B31&\" - \"&A31,ErrorReference!A:R,4,FALSE),\"\")","v":""},{"$f":"IFERROR(VLOOKUP(B31&\" - \"&A31,ErrorReference!A:R,5,FALSE),\"\")","v":""},{"$f":"IFERROR(VLOOKUP(B31&\" - \"&A31,ErrorReference!A:R,6,FALSE),\"\")","v":""},{"$f":"IFERROR(VLOOKUP(B31&\" - \"&A31,ErrorReference!A:R,7,FALSE),\"\")","v":""},{"$f":"IFERROR(VLOOKUP(B31&\" - \"&A31,ErrorReference!A:R,8,FALSE),\"\")","v":""},{"$f":"IFERROR(VLOOKUP(B31&\" - \"&A31,ErrorReference!A:R,9,FALSE),\"\")","v":""},{"$f":"IFERROR(VLOOKUP(B31&\" - \"&A31,ErrorReference!A:R,10,FALSE),\"\")","v":""},{"$f":"IFERROR(VLOOKUP(B31&\" - \"&A31,ErrorReference!A:R,11,FALSE),\"\")","v":""},{"$f":"IFERROR(VLOOKUP(B31&\" - \"&A31,ErrorReference!A:R,12,FALSE),\"\")","v":""},{"$f":"IFERROR(VLOOKUP(B31&\" - \"&A31,ErrorReference!A:R,13,FALSE),\"\")","v":""},{"$f":"IFERROR(VLOOKUP(B31&\" - \"&A31,ErrorReference!A:R,14,FALSE),\"\")","v":""},{"$f":"IFERROR(VLOOKUP(B31&\" - \"&A31,ErrorReference!A:R,15,FALSE),\"\")","v":""},{"$f":"IFERROR(VLOOKUP(B31&\" - \"&A31,ErrorReference!A:R,16,FALSE),\"\")","v":""},{"$f":"IFERROR(VLOOKUP(B31&\" - \"&A31,ErrorReference!A:R,17,FALSE),\"\")","v":""},{"$f":"IFERROR(VLOOKUP(B31&\" - \"&A31,ErrorReference!A:R,18,FALSE),\"\")","v":""}]
[null,null,null,null,{"$f":"IFERROR(VLOOKUP(B32&\" - \"&A32,ErrorReference!A:R,4,FALSE),\"\")","v":""},{"$f":"IFERROR(VLOOKUP(B32&\" - \"&A32,ErrorReference!A:R,5,FALSE),\"\")","v":""},{"$f":"IFERROR(VLOOKUP(B32&\" - \"&A32,ErrorReference!A:R,6,FALSE),\"\")","v":""},{"$f":"IFERROR(VLOOKUP(B32&\" - \"&A32,ErrorReference!A:R,7,FALSE),\"\")","v":""},{"$f":"IFERROR(VLOOKUP(B32&\" - \"&A32,ErrorReference!A:R,8,FALSE),\"\")","v":""},{"$f":"IFERROR(VLOOKUP(B32&\" - \"&A32,ErrorReference!A:R,9,FALSE),\"\")","v":""},{"$f":"IFERROR(VLOOKUP(B32&\" - \"&A32,ErrorReference!A:R,10,FALSE),\"\")","v":""},{"$f":"IFERROR(VLOOKUP(B32&\" - \"&A32,ErrorReference!A:R,11,FALSE),\"\")","v":""},{"$f":"IFERROR(VLOOKUP(B32&\" - \"&A32,ErrorReference!A:R,12,FALSE),\"\")","v":""},{"$f":"IFERROR(VLOOKUP(B32&\" - \"&A32,ErrorReference!A:R,13,FALSE),\"\")","v":""},{"$f":"IFERROR(VLOOKUP(B32&\" - \"&A32,ErrorReference!A:R,14,FALSE),\"\")","v":""},{"$f":"IFERROR(VLOOKUP(B32&\" - \"&A32,ErrorReference!A:R,15,FALSE),\"\")","v":""},{"$f":"IFERROR(VLOOKUP(B32&\" - \"&A32,ErrorReference!A:R,16,FALSE),\"\")","v":""},{"$f":"IFERROR(VLOOKUP(B32&\" - \"&A32,ErrorReference!A:R,17,FALSE),\"\")","v":""},{"$f":"IFERROR(VLOOKUP(B32&\" - \"&A32,ErrorReference!A:R,18,FALSE),\"\")","v":""}]
[null,null,null,null,{"$f":"IFERROR(VLOOKUP(B33&\" - \"&A33,ErrorReference!A:R,4,FALSE),\"\")","v":""},{"$f":"IFERROR(VLOOKUP(B33&\" - \"&A33,ErrorReference!A:R,5,FALSE),\"\")","v":""},{"$f":"IFERROR(VLOOKUP(B33&\" - \"&A33,ErrorReference!A:R,6,FALSE),\"\")","v":""},{"$f":"IFERROR(VLOOKUP(B33&\" - \"&A33,ErrorReference!A:R,7,FALSE),\"\")","v":""},{"$f":"IFERROR(VLOOKUP(B33&\" - \"&A33,ErrorReference!A:R,8,FALSE),\"\")","v":""},{"$f":"IFERROR(VLOOKUP(B33&\" - \"&A33,ErrorReference!A:R,9,FALSE),\"\")","v":""},{"$f":"IFERROR(VLOOKUP(B33&\" - \"&A33,ErrorReference!A:R,10,FALSE),\"\")","v":""},{"$f":"IFERROR(VLOOKUP(B33&\" - \"&A33,ErrorReference!A:R,11,FALSE),\"\")","v":""},{"$f":"IFERROR(VLOOKUP(B33&\" - \"&A33,ErrorReference!A:R,12,FALSE),\"\")","v":""},{"$f":"IFERROR(VLOOKUP(B33&\" - \"&A33,ErrorReference!A:R,13,FALSE),\"\")","v":""},{"$f":"IFERROR(VLOOKUP(B33&\" - \"&A33,ErrorReference!A:R,14,FALSE),\"\")","v":""},{"$f":"IFERROR(VLOOKUP(B33&\" - \"&A33,ErrorReference!A:R,15,FALSE),\"\")","v":""},{"$f":"IFERROR(VLOOKUP(B33&\" - \"&A33,ErrorReference!A:R,16,FALSE),\"\")","v":""},{"$f":"IFERROR(VLOOKUP(B33&\" - \"&A33,ErrorReference!A:R,17,FALSE),\"\")","v":""},{"$f":"IFERROR(VLOOKUP(B33&\" - \"&A33,ErrorReference!A:R,18,FALSE),\"\")","v":""}]
[null,null,null,null,{"$f":"IFERROR(VLOOKUP(B34&\" - \"&A34,ErrorReference!A:R,4,FALSE),\"\")","v":""},{"$f":"IFERROR(VLOOKUP(B34&\" - \"&A34,ErrorReference!A:R,5,FALSE),\"\")","v":""},{"$f":"IFERROR(VLOOKUP(B34&\" - \"&A34,ErrorReference!A:R,6,FALSE),\"\")","v":""},{"$f":"IFERROR(VLOOKUP(B34&\" - \"&A34,ErrorReference!A:R,7,FALSE),\"\")","v":""},{"$f":"IFERROR(VLOOKUP(B34&\" - \"&A34,ErrorReference!A:R,8,FALSE),\"\")","v":""},{"$f":"IFERROR(VLOOKUP(B34&\" - \"&A34,ErrorReference!A:R,9,FALSE),\"\")","v":""},{"$f":"IFERROR(VLOOKUP(B34&\" - \"&A34,ErrorReference!A:R,10,FALSE),\"\")","v":""},{"$f":"IFERROR(VLOOKUP(B34&\" - \"&A34,ErrorReference!A:R,11,FALSE),\"\")","v":""},{"$f":"IFERROR(VLOOKUP(B34&\" - \"&A34,ErrorReference!A:R,12,FALSE),\"\")","v":""},{"$f":"IFERROR(VLOOKUP(B34&\" - \"&A34,ErrorReference!A:R,13,FALSE),\"\")","v":""},{"$f":"IFERROR(VLOOKUP(B34&\" - \"&A34,ErrorReference!A:R,14,FALSE),\"\")","v":""},{"$f":"IFERROR(VLOOKUP(B34&\" - \"&A34,ErrorReference!A:R,15,FALSE),\"\")","v":""},{"$f":"IFERROR(VLOOKUP(B34&\" - \"&A34,ErrorReference!A:R,16,FALSE),\"\")","v":""},{"$f":"IFERROR(VLOOKUP(B34&\" - \"&A34,ErrorReference!A:R,17,FALSE),\"\")","v":""},{"$f":"IFERROR(VLOOKUP(B34&\" - \"&A34,ErrorReference!A:R,18,FALSE),\"\")","v":""}]
[null,null,null,null,{"$f":"IFERROR(VLOOKUP(B35&\" - \"&A35,ErrorReference!A:R,4,FALSE),\"\")","v":""},{"$f":"IFERROR(VLOOKUP(B35&\" - \"&A35,ErrorReference!A:R,5,FALSE),\"\")","v":""},{"$f":"IFERROR(VLOOKUP(B35&\" - \"&A35,ErrorReference!A:R,6,FALSE),\"\")","v":""},{"$f":"IFERROR(VLOOKUP(B35&\" - \"&A35,ErrorReference!A:R,7,FALSE),\"\")","v":""},{"$f":"IFERROR(VLOOKUP(B35&\" - \"&A35,ErrorReference!A:R,8,FALSE),\"\")","v":""},{"$f":"IFERROR(VLOOKUP(B35&\" - \"&A35,ErrorReference!A:R,9,FALSE),\"\")","v":""},{"$f":"IFERROR(VLOOKUP(B35&\" - \"&A35,ErrorReference!A:R,10,FALSE),\"\")","v":""},{"$f":"IFERROR(VLOOKUP(B35&\" - \"&A35,ErrorReference!A:R,11,FALSE),\"\")","v":""},{"$f":"IFERROR(VLOOKUP(B35&\" - \"&A35,ErrorReference!A:R,12,FALSE),\"\")","v":""},{"$f":"IFERROR(VLOOKUP(B35&\" - \"&A35,ErrorReference!A:R,13,FALSE),\"\")","v":""},{"$f":"IFERROR(VLOOKUP(B35&\" - \"&A35,ErrorReference!A:R,14,FALSE),\"\")","v":""},{"$f":"IFERROR(VLOOKUP(B35&\" - \"&A35,ErrorReference!A:R,15,FALSE),\"\")","v":""},{"$f":"IFERROR(VLOOKUP(B35&\" - \"&A35,ErrorReference!A:R,16,FALSE),\"\")","v":""},{"$f":"IFERROR(VLOOKUP(B35&\" - \"&A35,ErrorReference!A:R,17,FALSE),\"\")","v":""},{"$f":"IFERROR(VLOOKUP(B35&\" - \"&A35,ErrorReference!A:R,18,FALSE),\"\")","v":""}]
[null,null,null,null,{"$f":"IFERROR(VLOOKUP(B36&\" - \"&A36,ErrorReference!A:R,4,FALSE),\"\")","v":""},{"$f":"IFERROR(VLOOKUP(B36&\" - \"&A36,ErrorReference!A:R,5,FALSE),\"\")","v":""},{"$f":"IFERROR(VLOOKUP(B36&\" - \"&A36,ErrorReference!A:R,6,FALSE),\"\")","v":""},{"$f":"IFERROR(VLOOKUP(B36&\" - \"&A36,ErrorReference!A:R,7,FALSE),\"\")","v":""},{"$f":"IFERROR(VLOOKUP(B36&\" - \"&A36,ErrorReference!A:R,8,FALSE),\"\")","v":""},{"$f":"IFERROR(VLOOKUP(B36&\" - \"&A36,ErrorReference!A:R,9,FALSE),\"\")","v":""},{"$f":"IFERROR(VLOOKUP(B36&\" - \"&A36,ErrorReference!A:R,10,FALSE),\"\")","v":""},{"$f":"IFERROR(VLOOKUP(B36&\" - \"&A36,ErrorReference!A:R,11,FALSE),\"\")","v":""},{"$f":"IFERROR(VLOOKUP(B36&\" - \"&A36,ErrorReference!A:R,12,FALSE),\"\")","v":""},{"$f":"IFERROR(VLOOKUP(B36&\" - \"&A36,ErrorReference!A:R,13,FALSE),\"\")","v":""},{"$f":"IFERROR(VLOOKUP(B36&\" - \"&A36,ErrorReference!A:R,14,FALSE),\"\")","v":""},{"$f":"IFERROR(VLOOKUP(B36&\" - \"&A36,ErrorReference!A:R,15,FALSE),\"\")","v":""},{"$f":"IFERROR(VLOOKUP(B36&\" - \"&A36,ErrorReference!A:R,16,FALSE),\"\")","v":""},{"$f":"IFERROR(VLOOKUP(B36&\" - \"&A36,ErrorReference!A:R,17,FALSE),\"\")","v":""},{"$f":"IFERROR(VLOOKUP(B36&\" - \"&A36,ErrorReference!A:R,18,FALSE),\"\")","v":""}]
[null,null,null,null,{"$f":"IFERROR(VLOOKUP(B37&\" - \"&A37,ErrorReference!A:R,4,FALSE),\"\")","v":""},{"$f":"IFERROR(VLOOKUP(B37&\" - \"&A37,ErrorReference!A:R,5,FALSE),\"\")","v":""},{"$f":"IFERROR(VLOOKUP(B37&\" - \"&A37,ErrorReference!A:R,6,FALSE),\"\")","v":""},{"$f":"IFERROR(VLOOKUP(B37&\" - \"&A37,ErrorReference!A:R,7,FALSE),\"\")","v":""},{"$f":"IFERROR(VLOOKUP(B37&\" - \"&A37,ErrorReference!A:R,8,FALSE),\"\")","v":""},{"$f":"IFERROR(VLOOKUP(B37&\" - \"&A37,ErrorReference!A:R,9,FALSE),\"\")","v":""},{"$f":"IFERROR(VLOOKUP(B37&\" - \"&A37,ErrorReference!A:R,10,FALSE),\"\")","v":""},{"$f":"IFERROR(VLOOKUP(B37&\" - \"&A37,ErrorReference!A:R,11,FALSE),\"\")","v":""},{"$f":"IFERROR(VLOOKUP(B37&\" - \"&A37,ErrorReference!A:R,12,FALSE),\"\")","v":""},{"$f":"IFERROR(VLOOKUP(B37&\" - \"&A37,ErrorReference!A:R,13,FALSE),\"\")","v":""},{"$f":"IFERROR(VLOOKUP(B37&\" - \"&A37,ErrorReference!A:R,14,FALSE),\"\")","v":""},{"$f":"IFERROR(VLOOKUP(B37&\" - \"&A37,ErrorReference!A:R,15,FALSE),\"\")","v":""},{"$f":"IFERROR(VLOOKUP(B37&\" - \"&A37,ErrorReference!A:R,16,FALSE),\"\")","v":""},{"$f":"IFERROR(VLOOKUP(B37&\" - \"&A37,ErrorReference!A:R,17,FALSE),\"\")","v":""},{"$f":"IFERROR(VLOOKUP(B37&\" - \"&A37,ErrorReference!A:R,18,FALSE),\"\")","v":""}]
[null,null,null,null,{"$f":"IFERROR(VLOOKUP(B38&\" - \"&A38,ErrorReference!A:R,4,FALSE),\"\")","v":""},{"$f":"IFERROR(VLOOKUP(B38&\" - \"&A38,ErrorReference!A:R,5,FALSE),\"\")","v":""},{"$f":"IFERROR(VLOOKUP(B38&\" - \"&A38,ErrorReference!A:R,6,FALSE),\"\")","v":""},{"$f":"IFERROR(VLOOKUP(B38&\" - \"&A38,ErrorReference!A:R,7,FALSE),\"\")","v":""},{"$f":"IFERROR(VLOOKUP(B38&\" - \"&A38,ErrorReference!A:R,8,FALSE),\"\")","v":""},{"$f":"IFERROR(VLOOKUP(B38&\" - \"&A38,ErrorReference!A:R,9,FALSE),\"\")","v":""},{"$f":"IFERROR(VLOOKUP(B38&\" - \"&A38,ErrorReference!A:R,10,FALSE),\"\")","v":""},{"$f":"IFERROR(VLOOKUP(B38&\" - \"&A38,ErrorReference!A:R,11,FALSE),\"\")","v":""},{"$f":"IFERROR(VLOOKUP(B38&\" - \"&A38,ErrorReference!A:R,12,FALSE),\"\")","v":""},{"$f":"IFERROR(VLOOKUP(B38&\" - \"&A38,ErrorReference!A:R,13,FALSE),\"\")","v":""},{"$f":"IFERROR(VLOOKUP(B38&\" - \"&A38,ErrorReference!A:R,14,FALSE),\"\")","v":""},{"$f":"IFERROR(VLOOKUP(B38&\" - \"&A38,ErrorReference!A:R,15,FALSE),\"\")","v":""},{"$f":"IFERROR(VLOOKUP(B38&\" - \"&A38,ErrorReference!A:R,16,FALSE),\"\")","v":""},{"$f":"IFERROR(VLOOKUP(B38&\" - \"&A38,ErrorReference!A:R,17,FALSE),\"\")","v":""},{"$f":"IFERROR(VLOOKUP(B38&\" - \"&A38,ErrorReference!A:R,18,FALSE),\"\")","v":""}]
[null,null,null,null,{"$f":"IFERROR(VLOOKUP(B39&\" - \"&A39,ErrorReference!A:R,4,FALSE),\"\")","v":""},{"$f":"IFERROR(VLOOKUP(B39&\" - \"&A39,ErrorReference!A:R,5,FALSE),\"\")","v":""},{"$f":"IFERROR(VLOOKUP(B39&\" - \"&A39,ErrorReference!A:R,6,FALSE),\"\")","v":""},{"$f":"IFERROR(VLOOKUP(B39&\" - \"&A39,ErrorReference!A:R,7,FALSE),\"\")","v":""},{"$f":"IFERROR(VLOOKUP(B39&\" - \"&A39,ErrorReference!A:R,8,FALSE),\"\")","v":""},{"$f":"IFERROR(VLOOKUP(B39&\" - \"&A39,ErrorReference!A:R,9,FALSE),\"\")","v":""},{"$f":"IFERROR(VLOOKUP(B39&\" - \"&A39,ErrorReference!A:R,10,FALSE),\"\")","v":""},{"$f":"IFERROR(VLOOKUP(B39&\" - \"&A39,ErrorReference!A:R,11,FALSE),\"\")","v":""},{"$f":"IFERROR(VLOOKUP(B39&\" - \"&A39,ErrorReference!A:R,12,FALSE),\"\")","v":""},{"$f":"IFERROR(VLOOKUP(B39&\" - \"&A39,ErrorReference!A:R,13,FALSE),\"\")","v":""},{"$f":"IFERROR(VLOOKUP(B39&\" - \"&A39,ErrorReference!A:R,14,FALSE),\"\")","v":""},{"$f":"IFERROR(VLOOKUP(B39&\" - \"&A39,ErrorReference!A:R,15,FALSE),\"\")","v":""},{"$f":"IFERROR(VLOOKUP(B39&\" - \"&A39,ErrorReference!A:R,16,FALSE),\"\")","v":""},{"$f":"IFERROR(VLOOKUP(B39&\" - \"&A39,ErrorReference!A:R,17,FALSE),\"\")","v":""},{"$f":"IFERROR(VLOOKUP(B39&\" - \"&A39,ErrorReference!A:R,18,FALSE),\"\")","v":""}]
[null,null,null,null,{"$f":"IFERROR(VLOOKUP(B40&\" - \"&A40,ErrorReference!A:R,4,FALSE),\"\")","v":""},{"$f":"IFERROR(VLOOKUP(B40&\" - \"&A40,ErrorReference!A:R,5,FALSE),\"\")","v":""},{"$f":"IFERROR(VLOOKUP(B40&\" - \"&A40,ErrorReference!A:R,6,FALSE),\"\")","v":""},{"$f":"IFERROR(VLOOKUP(B40&\" - \"&A40,ErrorReference!A:R,7,FALSE),\"\")","v":""},{"$f":"IFERROR(VLOOKUP(B40&\" - \"&A40,ErrorReference!A:R,8,FALSE),\"\")","v":""},{"$f":"IFERROR(VLOOKUP(B40&\" - \"&A40,ErrorReference!A:R,9,FALSE),\"\")","v":""},{"$f":"IFERROR(VLOOKUP(B40&\" - \"&A40,ErrorReference!A:R,10,FALSE),\"\")","v":""},{"$f":"IFERROR(VLOOKUP(B40&\" - \"&A40,ErrorReference!A:R,11,FALSE),\"\")","v":""},{"$f":"IFERROR(VLOOKUP(B40&\" - \"&A40,ErrorReference!A:R,12,FALSE),\"\")","v":""},{"$f":"IFERROR(VLOOKUP(B40&\" - \"&A40,ErrorReference!A:R,13,FALSE),\"\")","v":""},{"$f":"IFERROR(VLOOKUP(B40&\" - \"&A40,ErrorReference!A:R,14,FALSE),\"\")","v":""},{"$f":"IFERROR(VLOOKUP(B40&\" - \"&A40,ErrorReference!A:R,15,FALSE),\"\")","v":""},{"$f":"IFERROR(VLOOKUP(B40&\" - \"&A40,ErrorReference!A:R,16,FALSE),\"\")","v":""},{"$f":"IFERROR(VLOOKUP(B40&\" - \"&A40,ErrorReference!A:R,17,FALSE),\"\")","v":""},{"$f":"IFERROR(VLOOKUP(B40&\" - \"&A40,ErrorReference!A:R,18,FALSE),\"\")","v":""}]
[null,null,null,null,{"$f":"IFERROR(VLOOKUP(B41&\" - \"&A41,ErrorReference!A:R,4,FALSE),\"\")","v":""},{"$f":"IFERROR(VLOOKUP(B41&\" - \"&A41,ErrorReference!A:R,5,FALSE),\"\")","v":""},{"$f":"IFERROR(VLOOKUP(B41&\" - \"&A41,ErrorReference!A:R,6,FALSE),\"\")","v":""},{"$f":"IFERROR(VLOOKUP(B41&\" - \"&A41,ErrorReference!A:R,7,FALSE),\"\")","v":""},{"$f":"IFERROR(VLOOKUP(B41&\" - \"&A41,ErrorReference!A:R,8,FALSE),\"\")","v":""},{"$f":"IFERROR(VLOOKUP(B41&\" - \"&A41,ErrorReference!A:R,9,FALSE),\"\")","v":""},{"$f":"IFERROR(VLOOKUP(B41&\" - \"&A41,ErrorReference!A:R,10,FALSE),\"\")","v":""},{"$f":"IFERROR(VLOOKUP(B41&\" - \"&A41,ErrorReference!A:R,11,FALSE),\"\")","v":""},{"$f":"IFERROR(VLOOKUP(B41&\" - \"&A41,ErrorReference!A:R,12,FALSE),\"\")","v":""},{"$f":"IFERROR(VLOOKUP(B41&\" - \"&A41,ErrorReference!A:R,13,FALSE),\"\")","v":""},{"$f":"IFERROR(VLOOKUP(B41&\" - \"&A41,ErrorReference!A:R,14,FALSE),\"\")","v":""},{"$f":"IFERROR(VLOOKUP(B41&\" - \"&A41,ErrorReference!A:R,15,FALSE),\"\")","v":""},{"$f":"IFERROR(VLOOKUP(B41&\" - \"&A41,ErrorReference!A:R,16,FALSE),\"\")","v":""},{"$f":"IFERROR(VLOOKUP(B41&\" - \"&A41,ErrorReference!A:R,17,FALSE),\"\")","v":""},{"$f":"IFERROR(VLOOKUP(B41&\" - \"&A41,ErrorReference!A:R,18,FALSE),\"\")","v":""}]
[null,null,null,null,{"$f":"IFERROR(VLOOKUP(B42&\" - \"&A42,ErrorReference!A:R,4,FALSE),\"\")","v":""},{"$f":"IFERROR(VLOOKUP(B42&\" - \"&A42,ErrorReference!A:R,5,FALSE),\"\")","v":""},{"$f":"IFERROR(VLOOKUP(B42&\" - \"&A42,ErrorReference!A:R,6,FALSE),\"\")","v":""},{"$f":"IFERROR(VLOOKUP(B42&\" - \"&A42,ErrorReference!A:R,7,FALSE),\"\")","v":""},{"$f":"IFERROR(VLOOKUP(B42&\" - \"&A42,ErrorReference!A:R,8,FALSE),\"\")","v":""},{"$f":"IFERROR(VLOOKUP(B42&\" - \"&A42,ErrorReference!A:R,9,FALSE),\"\")","v":""},{"$f":"IFERROR(VLOOKUP(B42&\" - \"&A42,ErrorReference!A:R,10,FALSE),\"\")","v":""},{"$f":"IFERROR(VLOOKUP(B42&\" - \"&A42,ErrorReference!A:R,11,FALSE),\"\")","v":""},{"$f":"IFERROR(VLOOKUP(B42&\" - \"&A42,ErrorReference!A:R,12,FALSE),\"\")","v":""},{"$f":"IFERROR(VLOOKUP(B42&\" - \"&A42,ErrorReference!A:R,13,FALSE),\"\")","v":""},{"$f":"IFERROR(VLOOKUP(B42&\" - \"&A42,ErrorReference!A:R,14,FALSE),\"\")","v":""},{"$f":"IFERROR(VLOOKUP(B42&\" - \"&A42,ErrorReference!A:R,15,FALSE),\"\")","v":""},{"$f":"IFERROR(VLOOKUP(B42&\" - \"&A42,ErrorReference!A:R,16,FALSE),\"\")","v":""},{"$f":"IFERROR(VLOOKUP(B42&\" - \"&A42,ErrorReference!A:R,17,FALSE),\"\")","v":""},{"$f":"IFERROR(VLOOKUP(B42&\" - \"&A42,ErrorReference!A:R,18,FALSE),\"\")","v":""}]
[null,null,null,null,{"$f":"IFERROR(VLOOKUP(B43&\" - \"&A43,ErrorReference!A:R,4,FALSE),\"\")","v":""},{"$f":"IFERROR(VLOOKUP(B43&\" - \"&A43,ErrorReference!A:R,5,FALSE),\"\")","v":""},{"$f":"IFERROR(VLOOKUP(B43&\" - \"&A43,ErrorReference!A:R,6,FALSE),\"\")","v":""},{"$f":"IFERROR(VLOOKUP(B43&\" - \"&A43,ErrorReference!A:R,7,FALSE),\"\")","v":""},{"$f":"IFERROR(VLOOKUP(B43&\" - \"&A43,ErrorReference!A:R,8,FALSE),\"\")","v":""},{"$f":"IFERROR(VLOOKUP(B43&\" - \"&A43,ErrorReference!A:R,9,FALSE),\"\")","v":""},{"$f":"IFERROR(VLOOKUP(B43&\" - \"&A43,ErrorReference!A:R,10,FALSE),\"\")","v":""},{"$f":"IFERROR(VLOOKUP(B43&\" - \"&A43,ErrorReference!A:R,11,FALSE),\"\")","v":""},{"$f":"IFERROR(VLOOKUP(B43&\" - \"&A43,ErrorReference!A:R,12,FALSE),\"\")","v":""},{"$f":"IFERROR(VLOOKUP(B43&\" - \"&A43,ErrorReference!A:R,13,FALSE),\"\")","v":""},{"$f":"IFERROR(VLOOKUP(B43&\" - \"&A43,ErrorReference!A:R,14,FALSE),\"\")","v":""},{"$f":"IFERROR(VLOOKUP(B43&\" - \"&A43,ErrorReference!A:R,15,FALSE),\"\")","v":""},{"$f":"IFERROR(VLOOKUP(B43&\" - \"&A43,ErrorReference!A:R,16,FALSE),\"\")","v":""},{"$f":"IFERROR(VLOOKUP(B43&\" - \"&A43,ErrorReference!A:R,17,FALSE),\"\")","v":""},{"$f":"IFERROR(VLOOKUP(B43&\" - \"&A43,ErrorReference!A:R,18,FALSE),\"\")","v":""}]
[null,null,null,null,{"$f":"IFERROR(VLOOKUP(B44&\" - \"&A44,ErrorReference!A:R,4,FALSE),\"\")","v":""},{"$f":"IFERROR(VLOOKUP(B44&\" - \"&A44,ErrorReference!A:R,5,FALSE),\"\")","v":""},{"$f":"IFERROR(VLOOKUP(B44&\" - \"&A44,ErrorReference!A:R,6,FALSE),\"\")","v":""},{"$f":"IFERROR(VLOOKUP(B44&\" - \"&A44,ErrorReference!A:R,7,FALSE),\"\")","v":""},{"$f":"IFERROR(VLOOKUP(B44&\" - \"&A44,ErrorReference!A:R,8,FALSE),\"\")","v":""},{"$f":"IFERROR(VLOOKUP(B44&\" - \"&A44,ErrorReference!A:R,9,FALSE),\"\")","v":""},{"$f":"IFERROR(VLOOKUP(B44&\" - \"&A44,ErrorReference!A:R,10,FALSE),\"\")","v":""},{"$f":"IFERROR(VLOOKUP(B44&\" - \"&A44,ErrorReference!A:R,11,FALSE),\"\")","v":""},{"$f":"IFERROR(VLOOKUP(B44&\" - \"&A44,ErrorReference!A:R,12,FALSE),\"\")","v":""},{"$f":"IFERROR(VLOOKUP(B44&\" - \"&A44,ErrorReference!A:R,13,FALSE),\"\")","v":""},{"$f":"IFERROR(VLOOKUP(B44&\" - \"&A44,ErrorReference!A:R,14,FALSE),\"\")","v":""},{"$f":"IFERROR(VLOOKUP(B44&\" - \"&A44,ErrorReference!A:R,15,FALSE),\"\")","v":""},{"$f":"IFERROR(VLOOKUP(B44&\" - \"&A44,ErrorReference!A:R,16,FALSE),\"\")","v":""},{"$f":"IFERROR(VLOOKUP(B44&\" - \"&A44,ErrorReference!A:R,17,FALSE),\"\")","v":""},{"$f":"IFERROR(VLOOKUP(B44&\" - \"&A44,ErrorReference!A:R,18,FALSE),\"\")","v":""}]
[null,null,null,null,{"$f":"IFERROR(VLOOKUP(B45&\" - \"&A45,ErrorReference!A:R,4,FALSE),\"\")","v":""},{"$f":"IFERROR(VLOOKUP(B45&\" - \"&A45,ErrorReference!A:R,5,FALSE),\"\")","v":""},{"$f":"IFERROR(VLOOKUP(B45&\" - \"&A45,ErrorReference!A:R,6,FALSE),\"\")","v":""},{"$f":"IFERROR(VLOOKUP(B45&\" - \"&A45,ErrorReference!A:R,7,FALSE),\"\")","v":""},{"$f":"IFERROR(VLOOKUP(B45&\" - \"&A45,ErrorReference!A:R,8,FALSE),\"\")","v":""},{"$f":"IFERROR(VLOOKUP(B45&\" - \"&A45,ErrorReference!A:R,9,FALSE),\"\")","v":""},{"$f":"IFERROR(VLOOKUP(B45&\" - \"&A45,ErrorReference!A:R,10,FALSE),\"\")","v":""},{"$f":"IFERROR(VLOOKUP(B45&\" - \"&A45,ErrorReference!A:R,11,FALSE),\"\")","v":""},{"$f":"IFERROR(VLOOKUP(B45&\" - \"&A45,ErrorReference!A:R,12,FALSE),\"\")","v":""},{"$f":"IFERROR(VLOOKUP(B45&\" - \"&A45,ErrorReference!A:R,13,FALSE),\"\")","v":""},{"$f":"IFERROR(VLOOKUP(B45&\" - \"&A45,ErrorReference!A:R,14,FALSE),\"\")","v":""},{"$f":"IFERROR(VLOOKUP(B45&\" - \"&A45,ErrorReference!A:R,15,FALSE),\"\")","v":""},{"$f":"IFERROR(VLOOKUP(B45&\" - \"&A45,ErrorReference!A:R,16,FALSE),\"\")","v":""},{"$f":"IFERROR(VLOOKUP(B45&\" - \"&A45,ErrorReference!A:R,17,FALSE),\"\")","v":""},{"$f":"IFERROR(VLOOKUP(B45&\" - \"&A45,ErrorReference!A:R,18,FALSE),\"\")","v":""}]
[null,null,null,null,{"$f":"IFERROR(VLOOKUP(B46&\" - \"&A46,ErrorReference!A:R,4,FALSE),\"\")","v":""},{"$f":"IFERROR(VLOOKUP(B46&\" - \"&A46,ErrorReference!A:R,5,FALSE),\"\")","v":""},{"$f":"IFERROR(VLOOKUP(B46&\" - \"&A46,ErrorReference!A:R,6,FALSE),\"\")","v":""},{"$f":"IFERROR(VLOOKUP(B46&\" - \"&A46,ErrorReference!A:R,7,FALSE),\"\")","v":""},{"$f":"IFERROR(VLOOKUP(B46&\" - \"&A46,ErrorReference!A:R,8,FALSE),\"\")","v":""},{"$f":"IFERROR(VLOOKUP(B46&\" - \"&A46,ErrorReference!A:R,9,FALSE),\"\")","v":""},{"$f":"IFERROR(VLOOKUP(B46&\" - \"&A46,ErrorReference!A:R,10,FALSE),\"\")","v":""},{"$f":"IFERROR(VLOOKUP(B46&\" - \"&A46,ErrorReference!A:R,11,FALSE),\"\")","v":""},{"$f":"IFERROR(VLOOKUP(B46&\" - \"&A46,ErrorReference!A:R,12,FALSE),\"\")","v":""},{"$f":"IFERROR(VLOOKUP(B46&\" - \"&A46,ErrorReference!A:R,13,FALSE),\"\")","v":""},{"$f":"IFERROR(VLOOKUP(B46&\" - \"&A46,ErrorReference!A:R,14,FALSE),\"\")","v":""},{"$f":"IFERROR(VLOOKUP(B46&\" - \"&A46,ErrorReference!A:R,15,FALSE),\"\")","v":""},{"$f":"IFERROR(VLOOKUP(B46&\" - \"&A46,ErrorReference!A:R,16,FALSE),\"\")","v":""},{"$f":"IFERROR(VLOOKUP(B46&\" - \"&A46,ErrorReference!A:R,17,FALSE),\"\")","v":""},{"$f":"IFERROR(VLOOKUP(B46&\" - \"&A46,ErrorReference!A:R,18,FALSE),\"\")","v":""}]
[null,null,null,null,{"$f":"IFERROR(VLOOKUP(B47&\" - \"&A47,ErrorReference!A:R,4,FALSE),\"\")","v":""},{"$f":"IFERROR(VLOOKUP(B47&\" - \"&A47,ErrorReference!A:R,5,FALSE),\"\")","v":""},{"$f":"IFERROR(VLOOKUP(B47&\" - \"&A47,ErrorReference!A:R,6,FALSE),\"\")","v":""},{"$f":"IFERROR(VLOOKUP(B47&\" - \"&A47,ErrorReference!A:R,7,FALSE),\"\")","v":""},{"$f":"IFERROR(VLOOKUP(B47&\" - \"&A47,ErrorReference!A:R,8,FALSE),\"\")","v":""},{"$f":"IFERROR(VLOOKUP(B47&\" - \"&A47,ErrorReference!A:R,9,FALSE),\"\")","v":""},{"$f":"IFERROR(VLOOKUP(B47&\" - \"&A47,ErrorReference!A:R,10,FALSE),\"\")","v":""},{"$f":"IFERROR(VLOOKUP(B47&\" - \"&A47,ErrorReference!A:R,11,FALSE),\"\")","v":""},{"$f":"IFERROR(VLOOKUP(B47&\" - \"&A47,ErrorReference!A:R,12,FALSE),\"\")","v":""},{"$f":"IFERROR(VLOOKUP(B47&\" - \"&A47,ErrorReference!A:R,13,FALSE),\"\")","v":""},{"$f":"IFERROR(VLOOKUP(B47&\" - \"&A47,ErrorReference!A:R,14,FALSE),\"\")","v":""},{"$f":"IFERROR(VLOOKUP(B47&\" - \"&A47,ErrorReference!A:R,15,FALSE),\"\")","v":""},{"$f":"IFERROR(VLOOKUP(B47&\" - \"&A47,ErrorReference!A:R,16,FALSE),\"\")","v":""},{"$f":"IFERROR(VLOOKUP(B47&\" - \"&A47,ErrorReference!A:R,17,FALSE),\"\")","v":""},{"$f":"IFERROR(VLOOKUP(B47&\" - \"&A47,ErrorReference!A:R,18,FALSE),\"\")","v":""}]
[null,null,null,null,{"$f":"IFERROR(VLOOKUP(B48&\" - \"&A48,ErrorReference!A:R,4,FALSE),\"\")","v":""},{"$f":"IFERROR(VLOOKUP(B48&\" - \"&A48,ErrorReference!A:R,5,FALSE),\"\")","v":""},{"$f":"IFERROR(VLOOKUP(B48&\" - \"&A48,ErrorReference!A:R,6,FALSE),\"\")","v":""},{"$f":"IFERROR(VLOOKUP(B48&\" - \"&A48,ErrorReference!A:R,7,FALSE),\"\")","v":""},{"$f":"IFERROR(VLOOKUP(B48&\" - \"&A48,ErrorReference!A:R,8,FALSE),\"\")","v":""},{"$f":"IFERROR(VLOOKUP(B48&\" - \"&A48,ErrorReference!A:R,9,FALSE),\"\")","v":""},{"$f":"IFERROR(VLOOKUP(B48&\" - \"&A48,ErrorReference!A:R,10,FALSE),\"\")","v":""},{"$f":"IFERROR(VLOOKUP(B48&\" - \"&A48,ErrorReference!A:R,11,FALSE),\"\")","v":""},{"$f":"IFERROR(VLOOKUP(B48&\" - \"&A48,ErrorReference!A:R,12,FALSE),\"\")","v":""},{"$f":"IFERROR(VLOOKUP(B48&\" - \"&A48,ErrorReference!A:R,13,FALSE),\"\")","v":""},{"$f":"IFERROR(VLOOKUP(B48&\" - \"&A48,ErrorReference!A:R,14,FALSE),\"\")","v":""},{"$f":"IFERROR(VLOOKUP(B48&\" - \"&A48,ErrorReference!A:R,15,FALSE),\"\")","v":""},{"$f":"IFERROR(VLOOKUP(B48&\" - \"&A48,ErrorReference!A:R,16,FALSE),\"\")","v":""},{"$f":"IFERROR(VLOOKUP(B48&\" - \"&A48,ErrorReference!A:R,17,FALSE),\"\")","v":""},{"$f":"IFERROR(VLOOKUP(B48&\" - \"&A48,ErrorReference!A:R,18,FALSE),\"\")","v":""}]
[null,null,null,null,{"$f":"IFERROR(VLOOKUP(B49&\" - \"&A49,ErrorReference!A:R,4,FALSE),\"\")","v":""},{"$f":"IFERROR(VLOOKUP(B49&\" - \"&A49,ErrorReference!A:R,5,FALSE),\"\")","v":""},{"$f":"IFERROR(VLOOKUP(B49&\" - \"&A49,ErrorReference!A:R,6,FALSE),\"\")","v":""},{"$f":"IFERROR(VLOOKUP(B49&\" - \"&A49,ErrorReference!A:R,7,FALSE),\"\")","v":""},{"$f":"IFERROR(VLOOKUP(B49&\" - \"&A49,ErrorReference!A:R,8,FALSE),\"\")","v":""},{"$f":"IFERROR(VLOOKUP(B49&\" - \"&A49,ErrorReference!A:R,9,FALSE),\"\")","v":""},{"$f":"IFERROR(VLOOKUP(B49&\" - \"&A49,ErrorReference!A:R,10,FALSE),\"\")","v":""},{"$f":"IFERROR(VLOOKUP(B49&\" - \"&A49,ErrorReference!A:R,11,FALSE),\"\")","v":""},{"$f":"IFERROR(VLOOKUP(B49&\" - \"&A49,ErrorReference!A:R,12,FALSE),\"\")","v":""},{"$f":"IFERROR(VLOOKUP(B49&\" - \"&A49,ErrorReference!A:R,13,FALSE),\"\")","v":""},{"$f":"IFERROR(VLOOKUP(B49&\" - \"&A49,ErrorReference!A:R,14,FALSE),\"\")","v":""},{"$f":"IFERROR(VLOOKUP(B49&\" - \"&A49,ErrorReference!A:R,15,FALSE),\"\")","v":""},{"$f":"IFERROR(VLOOKUP(B49&\" - \"&A49,ErrorReference!A:R,16,FALSE),\"\")","v":""},{"$f":"IFERROR(VLOOKUP(B49&\" - \"&A49,ErrorReference!A:R,17,FALSE),\"\")","v":""},{"$f":"IFERROR(VLOOKUP(B49&\" - \"&A49,ErrorReference!A:R,18,FALSE),\"\")","v":""}]
[null,null,null,null,{"$f":"IFERROR(VLOOKUP(B50&\" - \"&A50,ErrorReference!A:R,4,FALSE),\"\")","v":""},{"$f":"IFERROR(VLOOKUP(B50&\" - \"&A50,ErrorReference!A:R,5,FALSE),\"\")","v":""},{"$f":"IFERROR(VLOOKUP(B50&\" - \"&A50,ErrorReference!A:R,6,FALSE),\"\")","v":""},{"$f":"IFERROR(VLOOKUP(B50&\" - \"&A50,ErrorReference!A:R,7,FALSE),\"\")","v":""},{"$f":"IFERROR(VLOOKUP(B50&\" - \"&A50,ErrorReference!A:R,8,FALSE),\"\")","v":""},{"$f":"IFERROR(VLOOKUP(B50&\" - \"&A50,ErrorReference!A:R,9,FALSE),\"\")","v":""},{"$f":"IFERROR(VLOOKUP(B50&\" - \"&A50,ErrorReference!A:R,10,FALSE),\"\")","v":""},{"$f":"IFERROR(VLOOKUP(B50&\" - \"&A50,ErrorReference!A:R,11,FALSE),\"\")","v":""},{"$f":"IFERROR(VLOOKUP(B50&\" - \"&A50,ErrorReference!A:R,12,FALSE),\"\")","v":""},{"$f":"IFERROR(VLOOKUP(B50&\" - \"&A50,ErrorReference!A:R,13,FALSE),\"\")","v":""},{"$f":"IFERROR(VLOOKUP(B50&\" - \"&A50,ErrorReference!A:R,14,FALSE),\"\")","v":""},{"$f":"IFERROR(VLOOKUP(B50&\" - \"&A50,ErrorReference!A:R,15,FALSE),\"\")","v":""},{"$f":"IFERROR(VLOOKUP(B50&\" - \"&A50,ErrorReference!A:R,16,FALSE),\"\")","v":""},{"$f":"IFERROR(VLOOKUP(B50&\" - \"&A50,ErrorReference!A:R,17,FALSE),\"\")","v":""},{"$f":"IFERROR(VLOOKUP(B50&\" - \"&A50,ErrorReference!A:R,18,FALSE),\"\")","v":""}]
[null,null,null,null,{"$f":"IFERROR(VLOOKUP(B51&\" - \"&A51,ErrorReference!A:R,4,FALSE),\"\")","v":""},{"$f":"IFERROR(VLOOKUP(B51&\" - \"&A51,ErrorReference!A:R,5,FALSE),\"\")","v":""},{"$f":"IFERROR(VLOOKUP(B51&\" - \"&A51,ErrorReference!A:R,6,FALSE),\"\")","v":""},{"$f":"IFERROR(VLOOKUP(B51&\" - \"&A51,ErrorReference!A:R,7,FALSE),\"\")","v":""},{"$f":"IFERROR(VLOOKUP(B51&\" - \"&A51,ErrorReference!A:R,8,FALSE),\"\")","v":""},{"$f":"IFERROR(VLOOKUP(B51&\" - \"&A51,ErrorReference!A:R,9,FALSE),\"\")","v":""},{"$f":"IFERROR(VLOOKUP(B51&\" - \"&A51,ErrorReference!A:R,10,FALSE),\"\")","v":""},{"$f":"IFERROR(VLOOKUP(B51&\" - \"&A51,ErrorReference!A:R,11,FALSE),\"\")","v":""},{"$f":"IFERROR(VLOOKUP(B51&\" - \"&A51,ErrorReference!A:R,12,FALSE),\"\")","v":""},{"$f":"IFERROR(VLOOKUP(B51&\" - \"&A51,ErrorReference!A:R,13,FALSE),\"\")","v":""},{"$f":"IFERROR(VLOOKUP(B51&\" - \"&A51,ErrorReference!A:R,14,FALSE),\"\")","v":""},{"$f":"IFERROR(VLOOKUP(B51&\" - \"&A51,ErrorReference!A:R,15,FALSE),\"\")","v":""},{"$f":"IFERROR(VLOOKUP(B51&\" - \"&A51,ErrorReference!A:R,16,FALSE),\"\")","v":""},{"$f":"IFERROR(VLOOKUP(B51&\" - \"&A51,ErrorReference!A:R,17,FALSE),\"\")","v":""},{"$f":"IFERROR(VLOOKUP(B51&\" - \"&A51,ErrorReference!A:R,18,FALSE),\"\")","v":""}]

{"sheet":"ErrorReference","index":5,"n_rows":77,"n_cols":18,"rows_kept":77,"cut":false,"hidden":true,"merged":[]}
["Reference","Current Message","Additional information","Criteria 1","Criteria 2","Criteria 3","Criteria 4","Criteria 5","Criteria 6","Criteria 7","Criteria 8","Criteria 9","Criteria 10","Criteria 11","Criteria 12","Criteria 13","Criteria 14","Criteria 15"]
["MSD0011 - Group rejected - No valid MSD101 group transmitted for this LOCAL PATIENT IDENTIFIER (EXTENDED (MOTHER)).","MSD0011 - Group rejected - No valid MSD101 group transmitted for this LOCAL PATIENT IDENTIFIER (EXTENDED (MOTHER)). M001901 LOCAL PATIENT IDENTIFIER (EXTENDED (MOTHER))=<LPIDMother>","Record in the MSD001 table rejected because there is no corresponding record in the MSD101 table. There are two possible reasons why this message is presented. 1: The corresponding record in the linked table (MSD101) has been rejected due to a validation error. 2: There is no corresponding record in the linked table (MSD101).",2.1,2.2000000000000002,2.2999999999999998,2.4,2.5,2.6,2.7,2.8,2.9,2.1,2.11,3,4,5.0999999999999996,5.2]
["MSD0012 - Group rejected - No valid MSD002 group transmitted for this LOCAL PATIENT IDENTIFIER (EXTENDED (MOTHER)).","MSD0012 - Group rejected - No valid MSD002 group transmitted for this LOCAL PATIENT IDENTIFIER (EXTENDED (MOTHER)). M001901 LOCAL PATIENT IDENTIFIER (EXTENDED (MOTHER))=<LPIDMother>","Record in the MSD001 table rejected because there is no corresponding record in the MSD002 table. There are two possible reasons why this message is presented. 1: The corresponding record in the linked table (MSD002) has been rejected due to a validation error. 2: There is no corresponding record in the linked table (MSD002).",2.1,2.2000000000000002,2.2999999999999998,2.4,2.5,2.6,2.7,2.8,2.9,2.1,2.11,3,4,5.0999999999999996,5.2]
["MSD1011 - Group rejected - No valid MSD001 group transmitted for this LOCAL PATIENT IDENTIFIER (EXTENDED (MOTHER)).","MSD1011 - Group rejected - No valid MSD001 group transmitted for this LOCAL PATIENT IDENTIFIER (EXTENDED (MOTHER)). M101901 LOCAL PATIENT IDENTIFIER (EXTENDED (MOTHER))=<LPIDMother>","Record in the MSD101 table rejected because there is no corresponding record in the MSD001 table. There are two possible reasons why this message is presented. 1: The corresponding record in the linked table (MSD001) has been rejected due to a validation error. 2: There is no corresponding record in the linked table (MSD001).",2.1,2.2000000000000002,2.2999999999999998,2.4,2.5,2.6,2.7,2.8,2.9,2.1,2.11,3,4,5.0999999999999996,5.2]
["MSD1012 - Group rejected - More than one MSD101 groups transmitted for this PREGNANCY IDENTIFIER.","MSD1012 - Group rejected - More than one MSD101 groups transmitted for this PREGNANCY IDENTIFIER. M101902 PREGNANCY IDENTIFIER=<PregnancyID>",null,2.1,2.2000000000000002,2.2999999999999998,2.4,2.5,2.6,2.7,2.8,2.9,2.1,2.11,3,4,5.0999999999999996,5.2]
["MSD2011 - Group rejected - No valid MSD101 group transmitted for this PREGNANCY IDENTIFIER.","MSD2011 - Group rejected - No valid MSD101 group transmitted for this PREGNANCY IDENTIFIER. M201902 PREGNANCY IDENTIFIER=<PregnancyID>","Record in the MSD201 table rejected because there is no corresponding record in the MSD101 table. There are two possible reasons why this message is presented. 1: The corresponding record in the linked table (MSD101) has been rejected due to a validation error. 2: There is no corresponding record in the linked table (MSD101).",2.1,2.2000000000000002,2.2999999999999998,2.4,2.5,2.6,2.7,2.9,2.1,2.11,3]
["MSD2012 - Group rejected - More than one MSD201 groups transmitted for this CARE CONTACT IDENTIFIER.","MSD2012 - Group rejected - More than one MSD201 groups transmitted for this CARE CONTACT IDENTIFIER. M201903 CARE CONTACT IDENTIFIER=<CareConID>",null,2.1,2.2000000000000002,2.2999999999999998,2.4,2.5,2.6,2.7,2.9,2.1,2.11,3]
["MSD2021 - Group rejected - No valid MSD201 group transmitted for this CARE CONTACT IDENTIFIER.","MSD2021 - Group rejected - No valid MSD201 group transmitted for this CARE CONTACT IDENTIFIER. M202903 CARE CONTACT IDENTIFIER=<CareConID>","Record in the MSD202 table rejected because there is no corresponding record in the MSD201 table. There are two possible reasons why this message is presented. 1: The corresponding record in the linked table (MSD201) has been rejected due to a validation error. 2: There is no corresponding record in the linked table (MSD201).",3]
["MSD2022 - Group rejected - More than one MSD202 groups transmitted for this CARE ACTIVITY IDENTIFIER (MOTHER).","MSD2022 - Group rejected - More than one MSD202 groups transmitted for this CARE ACTIVITY IDENTIFIER (MOTHER). M202904 CARE ACTIVITY IDENTIFIER (MOTHER)=<CareActIDMother>B1:B9",null,3]
["MSD3011 - Group rejected - No valid MSD101 group transmitted for this PREGNANCY IDENTIFIER.","MSD3011 - Group rejected - No valid MSD101 group transmitted for this PREGNANCY IDENTIFIER. M301902 PREGNANCY IDENTIFIER=<PregnancyID>","Record in the MSD301 table rejected because there is no corresponding record in the MSD101 table. There are two possible reasons why this message is presented. 1: The corresponding record in the linked table (MSD101) has been rejected due to a validation error. 2: There is no corresponding record in the linked table (MSD101).",2.1,2.2000000000000002,2.2999999999999998,2.4,2.5,2.6,2.7,2.9,2.1,2.11]
["MSD3012 - Group rejected - More than one MSD301 groups transmitted for this LABOUR AND DELIVERY IDENTIFIER.","MSD3012 - Group rejected - More than one MSD301 groups transmitted for this LABOUR AND DELIVERY IDENTIFIER. M301905 LABOUR AND DELIVERY IDENTIFIER=<LabourDeliveryID>",null,2.1,2.2000000000000002,2.2999999999999998,2.4,2.5,2.6,2.7,2.9,2.1,2.11]
["MSD3021 - Group rejected - No valid MSD301 group transmitted for this LABOUR AND DELIVERY IDENTIFIER.","MSD3021 - Group rejected - No valid MSD301 group transmitted for this LABOUR AND DELIVERY IDENTIFIER. M302905 LABOUR AND DELIVERY IDENTIFIER=<LabourDeliveryID>","Record in the MSD302 table rejected because there is no corresponding record in the MSD301 table. There are two possible reasons why this message is presented. 1: The corresponding record in the linked table (MSD301) has been rejected due to a validation error. 2: There is no corresponding record in the linked table (MSD301).",2.2999999999999998,2.1]
["MSD4011 - Group rejected - No valid MSD301 group transmitted for this LABOUR AND DELIVERY IDENTIFIER.","MSD4011 - Group rejected - No valid MSD301 group transmitted for this LABOUR AND DELIVERY IDENTIFIER. M401905 LABOUR AND DELIVERY IDENTIFIER=<LabourDeliveryID>","Record in the MSD401 table rejected because there is no corresponding record in the MSD301 table. There are two possible reasons why this message is presented. 1: The corresponding record in the linked table (MSD301) has been rejected due to a validation error. 2: There is no corresponding record in the linked table (MSD301).",2.1,2.2000000000000002,2.2999999999999998,2.4,2.5,2.6,2.7,2.9,2.1,2.11]
["MSD4051 - Group rejected - No valid MSD401 group transmitted for this LOCAL PATIENT IDENTIFIER (EXTENDED (BABY)).","MSD4051 - Group rejected - No valid MSD401 group transmitted for this LOCAL PATIENT IDENTIFIER (EXTENDED (BABY)). M405906 LOCAL PATIENT IDENTIFIER (EXTENDED (BABY))=<LPIDBaby>","Record in the MSD405 table rejected because there is no corresponding record in the MSD401 table. There are two possible reasons why this message is presented. 1: The corresponding record in the linked table (MSD401) has been rejected due to a validation error. 2: There is no corresponding record in the linked table (MSD401).",2.1]
["MSD4052 - Group rejected - More than one MSD405 groups transmitted for the same CARE ACTIVITY IDENTIFIER (BABY).","MSD4052 - Group rejected - More than one MSD405 groups transmitted for the same CARE ACTIVITY IDENTIFIER (BABY). M405907 CARE ACTIVITY IDENTIFIER (BABY)=<CareActIDBaby>",null,2.1]
["MSDDEF1 - Record rejected - M401040 PREGNANCY OUTCOME is blank.","MSDDEF1 - Record rejected - M401040 PREGNANCY OUTCOME is blank.   M401906 LOCAL PATIENT IDENTIFIER (EXTENDED (BABY))=<LPIDBaby> ",null,2.1,2.2999999999999998,2.4,2.9,2.1]
["MSDDEF2 - Record rejected - M401040 PREGNANCY OUTCOME has an incorrect data format.","MSDDEF2 - Record rejected - M401040 PREGNANCY OUTCOME has an incorrect data format. M401906 LOCAL PATIENT IDENTIFIER (EXTENDED (BABY))=<LPIDBaby> M401040 PREGNANCY OUTCOME=<PregOutcome>",null,2.1,2.2999999999999998,2.4,2.9,2.1]
["MSDDEF5 - Record rejected - M401040 PREGNANCY OUTCOME contains an invalid PREGNANCY OUTCOME.","MSDDEF5 - Record rejected - M401040 PREGNANCY OUTCOME contains an invalid PREGNANCY OUTCOME. M401906 LOCAL PATIENT IDENTIFIER (EXTENDED (BABY))=<LPIDBaby> M401040 PREGNANCY OUTCOME=<PregOutcome>",null,2.1,2.2999999999999998,2.4,2.9,2.1]
["M4010401 - Warning -  PREGNANCY OUTCOME contains the value '02', '03' or '04' and the PERSON DEATH DATE (BABY) is not populated.","M4010401 - Warning -  PREGNANCY OUTCOME contains the value '02', '03' or '04' and the PERSON DEATH DATE (BABY) is not populated. M401906 LOCAL PATIENT IDENTIFIER (EXTENDED (BABY))=<LPIDBaby> M401040 PREGNANCY OUTCOME=<PregOutcome> ",null,2.1,2.2999999999999998,2.4,2.9,2.1]
["MSDDEF2 - Record rejected - M401140 GESTATION LENGTH (AT BIRTH) has an incorrect data format.","MSDDEF2 - Record rejected - M401140 GESTATION LENGTH (AT BIRTH) has an incorrect data format.   M401906 LOCAL PATIENT IDENTIFIER (EXTENDED (BABY))=<LPIDBaby> M401140 GESTATION LENGTH (AT BIRTH)=<GestationLengthBirth> ",null,2.1,2.4,2.5,2.6,2.7,2.1,2.11]
["MSDDEF2 - Record rejected - M405100 OBSERVATION SCHEME IN USE has an incorrect data format.","MSDDEF2 - Record rejected - M405100 OBSERVATION SCHEME IN USE has an incorrect data format. M405907 CARE ACTIVITY IDENTIFIER (BABY)=<CareActIDBaby> M405100 OBSERVATION SCHEME IN USE=<ObsScheme> ","This may affect CQIMApgar if activity is related to APGAR score",2.1]
["MSDDEF3 - Warning - M405100 OBSERVATION SCHEME IN USE contains an invalid OBSERVATION SCHEME IN USE.","MSDDEF3 - Warning - M405100 OBSERVATION SCHEME IN USE contains an invalid OBSERVATION SCHEME IN USE. M405907 CARE ACTIVITY IDENTIFIER (BABY)=<CareActIDBaby> M405100 OBSERVATION SCHEME IN USE=<ObsScheme>","This may affect CQIMApgar if activity is related to APGAR score",2.1]
["M4051001 - Record rejected - CODED OBSERVATION (CLINICAL TERMINOLOGY) is populated, but OBSERVATION SCHEME IN USE does not contain a valid value.","M4051001 - Record rejected - CODED OBSERVATION (CLINICAL TERMINOLOGY) is populated, but OBSERVATION SCHEME IN USE does not contain a valid value. M405907 CARE ACTIVITY IDENTIFIER (BABY)=<CareActIDBaby> M405100 OBSERVATION SCHEME IN USE=<ObsScheme> M405110 CODED OBSERVATION (CLINICAL TERMINOLOGY)=<ObsCode>","This may affect CQIMApgar if activity is related to APGAR score",2.1]
["MSDDEF2 - Record rejected - M405110 CODED OBSERVATION (CLINICAL TERMINOLOGY) has an incorrect data format.","MSDDEF2 - Record rejected - M405110 CODED OBSERVATION (CLINICAL TERMINOLOGY) has an incorrect data format. M405907 CARE ACTIVITY IDENTIFIER (BABY)=<CareActIDBaby> M405110 CODED OBSERVATION (CLINICAL TERMINOLOGY)=<ObsCode>","This may affect CQIMApgar if activity is related to APGAR score",2.1]
["M4051101 - Warning - OBSERVATION SCHEME IN USE is populated and CODED OBSERVATION (CLINICAL TERMINOLOGY) is blank.","M4051101 - Warning - OBSERVATION SCHEME IN USE is populated and CODED OBSERVATION (CLINICAL TERMINOLOGY) is blank. M405907 CARE ACTIVITY IDENTIFIER (BABY)=<CareActIDBaby> M405100 OBSERVATION SCHEME IN USE=<ObsScheme>","This may affect CQIMApgar if activity is related to APGAR score",2.1]
["M4051102 - Record rejected - CODED OBSERVATION (CLINICAL TERMINOLOGY) format does not match expected format for the specific OBSERVATION SCHEME IN USE (see Technical Glossary).","M4051102 - Record rejected - CODED OBSERVATION (CLINICAL TERMINOLOGY) format does not match expected format for the specific OBSERVATION SCHEME IN USE (see Technical Glossary). M405907 CARE ACTIVITY IDENTIFIER (BABY)=<CareActIDBaby> M405110 CODED OBSERVATION (CLINICAL TERMINOLOGY)=<ObsCode> M405100 OBSERVATION SCHEME IN USE=<ObsScheme>","This may affect CQIMApgar if activity is related to APGAR score",2.1]
["M4051103 - Record rejected - CODED OBSERVATION (CLINICAL TERMINOLOGY) is populated with a value that is contained within a restricted list/ refset.","M4051103 - Record rejected - CODED OBSERVATION (CLINICAL TERMINOLOGY) is populated with a value that is contained within a restricted list/ refset. M405907 CARE ACTIVITY IDENTIFIER (BABY)=<CareActIDBaby> M405110 CODED OBSERVATION (CLINICAL TERMINOLOGY)=<ObsCode>","This may affect CQIMApgar if activity is related to APGAR score",2.1]
["M4051104 - Record rejected - OBSERVATION SCHEME IN USE contains the value '03 - SNOMED CT' and CODED OBSERVATION (CLINICAL TERMINOLOGY) fails standard SNOMED CT checks (Check Digit and Partition Identifier).","M4051104 - Record rejected - OBSERVATION SCHEME IN USE contains the value '03 - SNOMED CT' and CODED OBSERVATION (CLINICAL TERMINOLOGY) fails standard SNOMED CT checks (Check Digit and Partition Identifier). M405907 CARE ACTIVITY IDENTIFIER (BABY)=<CareActIDBaby> M405110 CODED OBSERVATION (CLINICAL TERMINOLOGY)=<ObsCode>","This may affect CQIMApgar if activity is related to APGAR score",2.1]
["MSDDEF2 - Record rejected - M405120 OBSERVATION VALUE has an incorrect data format.","MSDDEF2 - Record rejected - M405120 OBSERVATION VALUE has an incorrect data format. M405907 CARE ACTIVITY IDENTIFIER (BABY)=<CareActIDBaby> M405120 OBSERVATION VALUE=<ObsValue>","This may affect CQIMApgar if activity is related to APGAR score",2.1]
["M4051201 - Record rejected - OBSERVATION VALUE is populated and the CODED OBSERVATION (CLINICAL TERMINOLOGY) is blank.","M4051201 - Record rejected - OBSERVATION VALUE is populated and the CODED OBSERVATION (CLINICAL TERMINOLOGY) is blank. M405907 CARE ACTIVITY IDENTIFIER (BABY)=<CareActIDBaby> M405120 OBSERVATION VALUE=<ObsValue>","This may affect CQIMApgar if activity is related to APGAR score",2.1]
["M4051202 - Warning - CODED OBSERVATION (CLINICAL TERMINOLOGY) is populated and the OBSERVATION VALUE is blank.","M4051202 - Warning - CODED OBSERVATION (CLINICAL TERMINOLOGY) is populated and the OBSERVATION VALUE is blank. M405907 CARE ACTIVITY IDENTIFIER (BABY)=<CareActIDBaby> M405110 CODED OBSERVATION (CLINICAL TERMINOLOGY)=<ObsCode>","This may affect CQIMApgar if activity is related to APGAR score",2.1]
["MSDDEF2 - Record rejected - M401210 BABY FIRST FEED BREAST MILK INDICATION CODE has an incorrect data format.","MSDDEF2 - Record rejected - M401210 BABY FIRST FEED BREAST MILK INDICATION CODE has an incorrect data format.   M401906 LOCAL PATIENT IDENTIFIER (EXTENDED (BABY))=<LPIDBaby> M401210 BABY FIRST FEED BREAST MILK INDICATION CODE=<BabyFirstFeedIndCode> ","BabyFirstFeedIndCode should be input as '01','02' or '03'",2.2000000000000002]
["MSDDEF3 - Warning - M401210 BABY FIRST FEED BREAST MILK INDICATION CODE contains an invalid BABY FIRST FEED BREAST MILK INDICATION CODE.","MSDDEF3 - Warning - M401210 BABY FIRST FEED BREAST MILK INDICATION CODE contains an invalid BABY FIRST FEED BREAST MILK INDICATION CODE.   M401906 LOCAL PATIENT IDENTIFIER (EXTENDED (BABY))=<LPIDBaby> M401210 BABY FIRST FEED BREAST MILK INDICATION CODE=<BabyFirstFeedIndCode>","BabyFirstFeedIndCode should be input as '01','02' or '03'",2.2000000000000002]
["MSDDEF2 - Record rejected - M302130 CODED OBSERVATION (CLINICAL TERMINOLOGY) has an incorrect data format.","MSDDEF2 - Record rejected - M302130 CODED OBSERVATION (CLINICAL TERMINOLOGY) has an incorrect data format. M302905 LABOUR AND DELIVERY IDENTIFIER=<LabourDeliveryID> M302130 CODED OBSERVATION (CLINICAL TERMINOLOGY)=<ObsCode>","This May affect CQIMPPH if related to Porstpartum Heamorrage",2.2999999999999998]
["M3021301 - Warning - OBSERVATION SCHEME IN USE is populated and CODED OBSERVATION (CLINICAL TERMINOLOGY) is blank.","M3021301 - Warning - OBSERVATION SCHEME IN USE is populated and CODED OBSERVATION (CLINICAL TERMINOLOGY) is blank. M302905 LABOUR AND DELIVERY IDENTIFIER=<LabourDeliveryID> M302120 OBSERVATION SCHEME IN USE=<ObsScheme>","This May affect CQIMPPH if related to Porstpartum Heamorrage",2.2999999999999998]
["M3021302 - Record rejected - CODED OBSERVATION (CLINICAL TERMINOLOGY) format does not match expected format for the specific OBSERVATION SCHEME IN USE (see Technical Glossary).","M3021302 - Record rejected - CODED OBSERVATION (CLINICAL TERMINOLOGY) format does not match expected format for the specific OBSERVATION SCHEME IN USE (see Technical Glossary). M302905 LABOUR AND DELIVERY IDENTIFIER=<LabourDeliveryID> M302130 CODED OBSERVATION (CLINICAL TERMINOLOGY)=<ObsCode> M302120 OBSERVATION SCHEME IN USE=<ObsScheme>","This May affect CQIMPPH if related to Porstpartum Heamorrage",2.2999999999999998]
["M3021303 - Record rejected - CODED OBSERVATION (CLINICAL TERMINOLOGY) is populated with a value that is contained within a restricted list/ refset.","M3021303 - Record rejected - CODED OBSERVATION (CLINICAL TERMINOLOGY) is populated with a value that is contained within a restricted list/ refset. M302905 LABOUR AND DELIVERY IDENTIFIER=<LabourDeliveryID> M302130 CODED OBSERVATION (CLINICAL TERMINOLOGY)=<ObsCode>","This May affect CQIMPPH if related to Porstpartum Heamorrage",2.2999999999999998]
["M3021304 - Record rejected - OBSERVATION SCHEME IN USE contains the value '03 - SNOMED CT' and CODED OBSERVATION (CODED CLINICAL ENTRY) fails standard SNOMED CT checks (Check Digit and Partition Identifier).","M3021304 - Record rejected - OBSERVATION SCHEME IN USE contains the value '03 - SNOMED CT' and CODED OBSERVATION (CODED CLINICAL ENTRY) fails standard SNOMED CT checks (Check Digit and Partition Identifier). M302905 LABOUR AND DELIVERY IDENTIFIER=<LabourDeliveryID> M302130 CODED OBSERVATION (CLINICAL TERMINOLOGY)=<ObsCode>","This May affect CQIMPPH if related to Porstpartum Heamorrage",2.2999999999999998]
["MSDDEF2 - Record rejected - M101200 PREGNANCY TOTAL PREVIOUS CAESAREAN SECTIONS has an incorrect data format.","MSDDEF2 - Record rejected - M101200 PREGNANCY TOTAL PREVIOUS CAESAREAN SECTIONS has an incorrect data format.   M101902 PREGNANCY IDENTIFIER=<PregnancyID> M101200 PREGNANCY TOTAL PREVIOUS CAESAREAN SECTIONS=<PreviousCaesareanSections> ",null,2.5,2.6,2.7,2.11]
["MSDDEF2 - Record rejected - M101210 PREGNANCY TOTAL PREVIOUS LIVE BIRTHS has an incorrect data format.","MSDDEF2 - Record rejected - M101210 PREGNANCY TOTAL PREVIOUS LIVE BIRTHS has an incorrect data format.   M101902 PREGNANCY IDENTIFIER=<PregnancyID> M101210 PREGNANCY TOTAL PREVIOUS LIVE BIRTHS=<PreviousLiveBirths> ",null,2.5,2.6,2.11]
["MSDDEF2 - Record rejected - M101220 PREGNANCY TOTAL PREVIOUS STILLBIRTHS has an incorrect data format.","MSDDEF2 - Record rejected - M101220 PREGNANCY TOTAL PREVIOUS STILLBIRTHS has an incorrect data format.   M101902 PREGNANCY IDENTIFIER=<PregnancyID> M101220 PREGNANCY TOTAL PREVIOUS STILLBIRTHS=<PreviousStillBirths> ",null,2.5,2.6,2.11]
["MSDDEF2 - Record rejected - M401130 PRESENTATION OF FETUS AT ONSET OF LABOUR OR DELIVERY has an incorrect data format.","MSDDEF2 - Record rejected - M401130 PRESENTATION OF FETUS AT ONSET OF LABOUR OR DELIVERY has an incorrect data format.   M401906 LOCAL PATIENT IDENTIFIER (EXTENDED (BABY))=<LPIDBaby> M401130 PRESENTATION OF FETUS AT ONSET OF LABOUR OR DELIVERY=<FetusPresentation> ",null,2.5,2.6,2.7]
["MSDDEF3 - Warning - M401130 PRESENTATION OF FETUS AT ONSET OF LABOUR OR DELIVERY contains an invalid PRESENTATION OF FETUS AT ONSET OF LABOUR OR DELIVERY.","MSDDEF3 - Warning - M401130 PRESENTATION OF FETUS AT ONSET OF LABOUR OR DELIVERY contains an invalid PRESENTATION OF FETUS AT ONSET OF LABOUR OR DELIVERY.   M401906 LOCAL PATIENT IDENTIFIER (EXTENDED (BABY))=<LPIDBaby> M401130 PRESENTATION OF FETUS AT ONSET OF LABOUR OR DELIVERY=<FetusPresentation> ",null,2.5,2.6,2.7]
["MSDDEF2 - Record rejected - M301040 LABOUR OR DELIVERY ONSET METHOD CODE has an incorrect data format.","MSDDEF2 - Record rejected - M301040 LABOUR OR DELIVERY ONSET METHOD CODE has an incorrect data format.   M301905 LABOUR AND DELIVERY IDENTIFIER=<LabourDeliveryID> M301040 LABOUR OR DELIVERY ONSET METHOD CODE=<LabourOnsetMethod> ",null,2.5,2.6]
["MSDDEF3 - Warning - M301040 LABOUR OR DELIVERY ONSET METHOD CODE contains an invalid LABOUR OR DELIVERY ONSET METHOD CODE.","MSDDEF3 - Warning - M301040 LABOUR OR DELIVERY ONSET METHOD CODE contains an invalid LABOUR OR DELIVERY ONSET METHOD CODE.   M301905 LABOUR AND DELIVERY IDENTIFIER=<LabourDeliveryID> M301040 LABOUR OR DELIVERY ONSET METHOD CODE=<LabourOnsetMethod>",null,2.5,2.6]
["MSDDEF2 - Record rejected - M301050 ONSET OF ESTABLISHED LABOUR DATE has an incorrect data format.","MSDDEF2 - Record rejected - M301050 ONSET OF ESTABLISHED LABOUR DATE has an incorrect data format.   M301905 LABOUR AND DELIVERY IDENTIFIER=<LabourDeliveryID> M301050 ONSET OF ESTABLISHED LABOUR DATE=<LabourOnsetDate>",null,2.5,2.6]
["M3010501 - Record rejected - ONSET OF ESTABLISHED LABOUR DATE and PROCEDURE DATE (CAESAREAN SECTION) are both blank.","M3010501 - Record rejected - ONSET OF ESTABLISHED LABOUR DATE and PROCEDURE DATE (CAESAREAN SECTION) are both blank.   M301905 LABOUR AND DELIVERY IDENTIFIER=<LabourDeliveryID>",null,2.5,2.6]
["M3010502 - Record rejected - ONSET OF ESTABLISHED LABOUR DATE is before the APPOINTMENT DATE (FORMAL ANTENATAL BOOKING).","M3010502 - Record rejected - ONSET OF ESTABLISHED LABOUR DATE is before the APPOINTMENT DATE (FORMAL ANTENATAL BOOKING).   M301905 LABOUR AND DELIVERY IDENTIFIER=<LabourDeliveryID> M301050 ONSET OF ESTABLISHED LABOUR DATE=<LabourOnsetDate> M101020 APPOINTMENT DATE (FORMAL ANTENATAL BOOKING)=<AntenatalAppDate>",null,2.5,2.6]
["M3010503 - Record rejected - ONSET OF ESTABLISHED LABOUR DATE is after the DATA SET CREATED DATE.","M3010503 - Record rejected - ONSET OF ESTABLISHED LABOUR DATE is after the DATA SET CREATED DATE. M301905 LABOUR AND DELIVERY IDENTIFIER=<LabourDeliveryID> M301050 ONSET OF ESTABLISHED LABOUR DATE=<LabourOnsetDate> M000070 DATA SET CREATED DATE=<FileCreationDate>",null,2.5,2.6]
["MSDDEF2 - Record rejected - M401150 DELIVERY METHOD CODE has an incorrect data format.","MSDDEF2 - Record rejected - M401150 DELIVERY METHOD CODE has an incorrect data format.   M401906 LOCAL PATIENT IDENTIFIER (EXTENDED (BABY))=<LPIDBaby> M401150 DELIVERY METHOD CODE=<DeliveryMethodCode> ",null,2.7,2.1,2.11]
["MSDDEF3 - Warning - M401150 DELIVERY METHOD CODE contains an invalid DELIVERY METHOD CODE.","MSDDEF3 - Warning - M401150 DELIVERY METHOD CODE contains an invalid DELIVERY METHOD CODE.   M401906 LOCAL PATIENT IDENTIFIER (EXTENDED (BABY))=<LPIDBaby> M401150 DELIVERY METHOD CODE=<DeliveryMethodCode> ",null,2.7,2.1,2.11]
["MSDDEF2 - Record rejected - M202090 OBSERVATION SCHEME IN USE has an incorrect data format.","MSDDEF2 - Record rejected - M202090 OBSERVATION SCHEME IN USE has an incorrect data format. M202904 CARE ACTIVITY IDENTIFIER (MOTHER)=<CareActIDMother> M202090 OBSERVATION SCHEME IN USE=<ObsScheme>",null,3]
["MSDDEF3 - Warning - M202090 OBSERVATION SCHEME IN USE contains an invalid OBSERVATION SCHEME IN USE.","MSDDEF3 - Warning - M202090 OBSERVATION SCHEME IN USE contains an invalid OBSERVATION SCHEME IN USE. M202904 CARE ACTIVITY IDENTIFIER (MOTHER)=<CareActIDMother> M202090 OBSERVATION SCHEME IN USE=<ObsScheme> ",null,3]
["M2020901 - Record rejected - CODED OBSERVATION (CLINICAL TERMINOLOGY) is populated, but OBSERVATION SCHEME IN USE does not contain a valid value.","M2020901 - Record rejected - CODED OBSERVATION (CLINICAL TERMINOLOGY) is populated, but OBSERVATION SCHEME IN USE does not contain a valid value. M202904 CARE ACTIVITY IDENTIFIER (MOTHER)=<CareActIDMother> M202090 OBSERVATION SCHEME IN USE=<ObsScheme> M202100 CODED OBSERVATION (CLINICAL TERMINOLOGY)=<ObsCode>",null,3]
["MSDDEF2 - Record rejected - M202100 CODED OBSERVATION (CLINICAL TERMINOLOGY) has an incorrect data format.","MSDDEF2 - Record rejected - M202100 CODED OBSERVATION (CLINICAL TERMINOLOGY) has an incorrect data format. M202904 CARE ACTIVITY IDENTIFIER (MOTHER)=<CareActIDMother> M202100 CODED OBSERVATION (CLINICAL TERMINOLOGY)=<ObsCode>",null,3]
["M2021001 - Warning - OBSERVATION SCHEME IN USE is populated and CODED OBSERVATION (CLINICAL TERMINOLOGY) is blank.","M2021001 - Warning - OBSERVATION SCHEME IN USE is populated and CODED OBSERVATION (CLINICAL TERMINOLOGY) is blank. M202904 CARE ACTIVITY IDENTIFIER (MOTHER)=<CareActIDMother> M202090 OBSERVATION SCHEME IN USE=<ObsScheme>",null,3]
["M2021002 - Record rejected - CODED OBSERVATION (CLINICAL TERMINOLOGY) format does not match expected format for the specific OBSERVATION SCHEME IN USE (see Technical Glossary).","M2021002 - Record rejected - CODED OBSERVATION (CLINICAL TERMINOLOGY) format does not match expected format for the specific OBSERVATION SCHEME IN USE (see Technical Glossary). M202904 CARE ACTIVITY IDENTIFIER (MOTHER)=<CareActIDMother> M202100 CODED OBSERVATION (CLINICAL TERMINOLOGY)=<ObsCode> M202090 OBSERVATION SCHEME IN USE=<ObsScheme>",null,3]
["M2021003 - Record rejected - CODED OBSERVATION (CLINICAL TERMINOLOGY) is populated with a value that is contained within a restricted list/ refset.","M2021003 - Record rejected - CODED OBSERVATION (CLINICAL TERMINOLOGY) is populated with a value that is contained within a restricted list/ refset. M202904 CARE ACTIVITY IDENTIFIER (MOTHER)=<CareActIDMother> M202100 CODED OBSERVATION (CLINICAL TERMINOLOGY)=<ObsCode>",null,3]
["M2021004 - Record rejected - OBSERVATION SCHEME IN USE contains the value '03 - SNOMED CT' and CODED OBSERVATION (CLINICAL TERMINOLOGY) fails standard SNOMED CT checks (Check Digit and Partition Identifier).","M2021004 - Record rejected - OBSERVATION SCHEME IN USE contains the value '03 - SNOMED CT' and CODED OBSERVATION (CLINICAL TERMINOLOGY) fails standard SNOMED CT checks (Check Digit and Partition Identifier). M202904 CARE ACTIVITY IDENTIFIER (MOTHER)=<CareActIDMother> M202100 CODED OBSERVATION (CLINICAL TERMINOLOGY)=<ObsCode>",null,3]
["MSDDEF2 - Record rejected - M202110 OBSERVATION VALUE has an incorrect data format.","MSDDEF2 - Record rejected - M202110 OBSERVATION VALUE has an incorrect data format. M202904 CARE ACTIVITY IDENTIFIER (MOTHER)=<CareActIDMother> M202110 OBSERVATION VALUE=<ObsValue>",null,3]
["M2021101 - Record rejected - OBSERVATION VALUE is populated and the CODED OBSERVATION (CLINICAL TERMINOLOGY) is blank.","M2021101 - Record rejected - OBSERVATION VALUE is populated and the CODED OBSERVATION (CLINICAL TERMINOLOGY) is blank. M202904 CARE ACTIVITY IDENTIFIER (MOTHER)=<CareActIDMother> M202110 OBSERVATION VALUE=<ObsValue>",null,3]
["M2021102 - Warning - CODED OBSERVATION (CLINICAL TERMINOLOGY) is populated and the OBSERVATION VALUE is blank.","M2021102 - Warning - CODED OBSERVATION (CLINICAL TERMINOLOGY) is populated and the OBSERVATION VALUE is blank. M202904 CARE ACTIVITY IDENTIFIER (MOTHER)=<CareActIDMother> M202100 CODED OBSERVATION (CLINICAL TERMINOLOGY)=<ObsCode>",null,3]
["MSDDEF2 - Record rejected - M202120 UCUM UNIT OF MEASUREMENT has an incorrect data format.","MSDDEF2 - Record rejected - M202120 UCUM UNIT OF MEASUREMENT has an incorrect data format. M202904 CARE ACTIVITY IDENTIFIER (MOTHER)=<CareActIDMother> M202120 UCUM UNIT OF MEASUREMENT=<UCUMUnit>",null,3]
["M2021201 - Record rejected - UCUM UNIT OF MEASUREMENT is populated and the OBSERVATION VALUE is blank.","M2021201 - Record rejected - UCUM UNIT OF MEASUREMENT is populated and the OBSERVATION VALUE is blank. M202904 CARE ACTIVITY IDENTIFIER (MOTHER)=<CareActIDMother> M202120 UCUM UNIT OF MEASUREMENT=<UCUMUnit>",null,3]
["M2021202 - Warning - OBSERVATION VALUE is populated and the UCUM UNIT OF MEASUREMENT is blank.","M2021202 - Warning - OBSERVATION VALUE is populated and the UCUM UNIT OF MEASUREMENT is blank. M202904 CARE ACTIVITY IDENTIFIER (MOTHER)=<CareActIDMother> M202110 OBSERVATION VALUE=<ObsValue>",null,3]
["MSDDEF2 - Record rejected - M101160 COMPLEX SOCIAL FACTORS INDICATOR (AT ANTENATAL BOOKING) has an incorrect data format.","MSDDEF2 - Record rejected - M101160 COMPLEX SOCIAL FACTORS INDICATOR (AT ANTENATAL BOOKING) has an incorrect data format.   M101902 PREGNANCY IDENTIFIER=<PregnancyID> M101160 COMPLEX SOCIAL FACTORS INDICATOR (AT ANTENATAL BOOKING)=<ComplexSocialFactorsInd>","Must be completed with Y or N for Criteria 4: Complex Social Factors.",4]
["MSDDEF3 - Warning - M101160 COMPLEX SOCIAL FACTORS INDICATOR (AT ANTENATAL BOOKING) contains an invalid COMPLEX SOCIAL FACTORS INDICATOR (AT ANTENATAL BOOKING).","MSDDEF3 - Warning - M101160 COMPLEX SOCIAL FACTORS INDICATOR (AT ANTENATAL BOOKING) contains an invalid COMPLEX SOCIAL FACTORS INDICATOR (AT ANTENATAL BOOKING).   M101902 PREGNANCY IDENTIFIER=<PregnancyID> M101160 COMPLEX SOCIAL FACTORS INDICATOR (AT ANTENATAL BOOKING)=<ComplexSocialFactorsInd>","Must be completed with Y or N for Criteria 4: Complex Social Factors.",4]
["MSDDEF1 - Record rejected - M101020 APPOINTMENT DATE (FORMAL ANTENATAL BOOKING) is blank.","MSDDEF1 - Record rejected - M101020 APPOINTMENT DATE (FORMAL ANTENATAL BOOKING) is blank.   M101902 PREGNANCY IDENTIFIER=<PregnancyID> ",null,5.0999999999999996,5.2]
["MSDDEF2 - Record rejected - M101020 APPOINTMENT DATE (FORMAL ANTENATAL BOOKING) has an incorrect data format.","MSDDEF2 - Record rejected - M101020 APPOINTMENT DATE (FORMAL ANTENATAL BOOKING) has an incorrect data format.   M101902 PREGNANCY IDENTIFIER=<PregnancyID> M101020 APPOINTMENT DATE (FORMAL ANTENATAL BOOKING)=<AntenatalAppDate> ",null,5.0999999999999996,5.2]
["M1010201 - Record rejected - APPOINTMENT DATE (FORMAL ANTENATAL BOOKING) is after the REPORTING PERIOD END DATE.","M1010201 - Record rejected - APPOINTMENT DATE (FORMAL ANTENATAL BOOKING) is after the REPORTING PERIOD END DATE.   M101902 PREGNANCY IDENTIFIER=<PregnancyID> M101020 APPOINTMENT DATE (FORMAL ANTENATAL BOOKING)=<AntenatalAppDate>",null,5.0999999999999996,5.2]
["M1010202 - Record rejected - APPOINTMENT DATE (FORMAL ANTENATAL BOOKING) is more than 12 months before the REPORTING PERIOD END DATE.","M1010202 - Record rejected - APPOINTMENT DATE (FORMAL ANTENATAL BOOKING) is more than 12 months before the REPORTING PERIOD END DATE.   M101902 PREGNANCY IDENTIFIER=<PregnancyID> M101020 APPOINTMENT DATE (FORMAL ANTENATAL BOOKING)=<AntenatalAppDate>",null,5.0999999999999996,5.2]
["MSDDEF2 - Record rejected - M102020 MATERNITY CARE PLAN TYPE has an incorrect data format.","MSDDEF2 - Record rejected - M102020 MATERNITY CARE PLAN TYPE has an incorrect data format.   M102902 PREGNANCY IDENTIFIER=<PregnancyID> M102020 MATERNITY CARE PLAN TYPE=<CarePlanType> ",null,5.0999999999999996,5.2]
["MSDDEF3 - Warning - M102020 MATERNITY CARE PLAN TYPE contains an invalid MATERNITY CARE PLAN TYPE.","MSDDEF3 - Warning - M102020 MATERNITY CARE PLAN TYPE contains an invalid MATERNITY CARE PLAN TYPE.   M102902 PREGNANCY IDENTIFIER=<PregnancyID> M102020 MATERNITY CARE PLAN TYPE=<CarePlanType> ",null,5.0999999999999996,5.2]
["MSDDEF2 - Record rejected - M102040 CONTINUITY OF CARER PATHWAY INDICATOR has an incorrect data format.","MSDDEF2 - Record rejected - M102040 CONTINUITY OF CARER PATHWAY INDICATOR has an incorrect data format.   M102902 PREGNANCY IDENTIFIER=<PregnancyID> M102040 CONTINUITY OF CARER PATHWAY INDICATOR=<ContCarePathInd>",null,5.0999999999999996]
["MSDDEF3 - Warning - M102040 CONTINUITY OF CARER PATHWAY INDICATOR contains an invalid CONTINUITY OF CARER PATHWAY INDICATOR.","MSDDEF3 - Warning - M102040 CONTINUITY OF CARER PATHWAY INDICATOR contains an invalid CONTINUITY OF CARER PATHWAY INDICATOR.   M102902 PREGNANCY IDENTIFIER=<PregnancyID> M102040 CONTINUITY OF CARER PATHWAY INDICATOR=<ContCarePathInd>",null,5.0999999999999996]
["MSDDEF2 - Record rejected - M102030 MATERNITY PERSONALISED CARE PLAN INDICATOR has an incorrect data format.","MSDDEF2 - Record rejected - M102030 MATERNITY PERSONALISED CARE PLAN INDICATOR has an incorrect data format.   M102902 PREGNANCY IDENTIFIER=<PregnancyID> M102030 MATERNITY PERSONALISED CARE PLAN INDICATOR=<MatPersCarePlanInd> ",null,5.2]
["MSDDEF3 - Warning - M102030 MATERNITY PERSONALISED CARE PLAN INDICATOR contains an invalid MATERNITY PERSONALISED CARE PLAN INDICATOR.","MSDDEF3 - Warning - M102030 MATERNITY PERSONALISED CARE PLAN INDICATOR contains an invalid MATERNITY PERSONALISED CARE PLAN INDICATOR.   M102902 PREGNANCY IDENTIFIER=<PregnancyID> M102030 MATERNITY PERSONALISED CARE PLAN INDICATOR=<MatPersCarePlanInd> ",null,5.2]

{"sheet":"CriteriaReference","index":6,"n_rows":18,"n_cols":4,"rows_kept":18,"cut":false,"hidden":true,"merged":[]}
[1,{"$f":"INDEX(A3:A18,A1)","v":99}]
["Criteria","Standard","Construction","Title"]
[99,"List All","List All","Full summary of all validation errors"]
[2.1,"Trust Boards to assure themselves that at least 10 out of 11 Clinical Quality Improvement Metrics (CQIMs) have passed the associated data quality criteria on the national Maternity Services Dashboard for data submissions relating to activity in July 2023. ","CQIMDQ14\nCQIMDQ15\nCQIMDQ16\nCQIMDQ24\nSee metadata file for full construction.","CQIMApgar"]
[2.2000000000000002,"Trust Boards to assure themselves that at least 10 out of 11 Clinical Quality Improvement Metrics (CQIMs) have passed the associated data quality criteria on the national Maternity Services Dashboard for data submissions relating to activity in July 2023. ","CQIMDQ08\nCQIMDQ09\nSee metadata file for full construction","CQIMBreastfeeding"]
[2.2999999999999998,"Trust Boards to assure themselves that at least 10 out of 11 Clinical Quality Improvement Metrics (CQIMs) have passed the associated data quality criteria on the national Maternity Services Dashboard for data submissions relating to activity in July 2023. ","CQIMDQ10\nCQIMDQ11\nCQIMDQ12\nCQIMDQ13\nSee metadata file for full construction","CQIMPPH"]
[2.4,"Trust Boards to assure themselves that at least 10 out of 11 Clinical Quality Improvement Metrics (CQIMs) have passed the associated data quality criteria on the national Maternity Services Dashboard for data submissions relating to activity in July 2023. ","CQIMDQ09\nCQIMDQ22\nCQIMDQ23\nSee metadata file for full construction","CQIMPreterm"]
[2.5,"Trust Boards to assure themselves that at least 10 out of 11 Clinical Quality Improvement Metrics (CQIMs) have passed the associated data quality criteria on the national Maternity Services Dashboard for data submissions relating to activity in July 2023. ","CQIMDQ30\nCQIMDQ31\nCQIMDQ32\nCQIMDQ33\nCQIMDQ34\nCQIMDQ36\nCQIMDQ37\nCQIMDQ38\nCQIMDQ39\nSee metadata file for full construction","CQIMRobson1"]
[2.6,"Trust Boards to assure themselves that at least 10 out of 11 Clinical Quality Improvement Metrics (CQIMs) have passed the associated data quality criteria on the national Maternity Services Dashboard for data submissions relating to activity in July 2023. ","CQIMDQ30\nCQIMDQ31\nCQIMDQ32\nCQIMDQ33\nCQIMDQ34\nCQIMDQ36\nCQIMDQ37\nCQIMDQ38\nCQIMDQ39\nSee metadata file for full construction","CQIMRobson2"]
[2.7,"Trust Boards to assure themselves that at least 10 out of 11 Clinical Quality Improvement Metrics (CQIMs) have passed the associated data quality criteria on the national Maternity Services Dashboard for data submissions relating to activity in July 2023. ","CQIMDQ30\nCQIMDQ31\nCQIMDQ32\nCQIMDQ33\nCQIMDQ34\nCQIMDQ36\nCQIMDQ37\nCQIMDQ38\nCQIMDQ39\nSee metadata file for full construction","CQIMRobson5"]
[2.8,"Trust Boards to assure themselves that at least 10 out of 11 Clinical Quality Improvement Metrics (CQIMs) have passed the associated data quality criteria on the national Maternity Services Dashboard for data submissions relating to activity in July 2023. ","CQIMDQ03\nCQIMDQ04\nCQIMDQ05\nSee metadata file for full construction","CQIMSmokingBooking"]
[2.9,"Trust Boards to assure themselves that at least 10 out of 11 Clinical Quality Improvement Metrics (CQIMs) have passed the associated data quality criteria on the national Maternity Services Dashboard for data submissions relating to activity in July 2023. ","CQIMDQ02\nCQIMDQ06\nCQIMDQ07\nSee metadata file for full construction","CQIMSmokingDelivery"]
[2.1,"Trust Boards to assure themselves that at least 10 out of 11 Clinical Quality Improvement Metrics (CQIMs) have passed the associated data quality criteria on the national Maternity Services Dashboard for data submissions relating to activity in July 2023. ","CQIMDQ14\nCQIMDQ15\nCQIMDQ16\nCQIMDQ18\nCQIMDQ19\nCQIMDQ20\nCQIMDQ21\nSee metadata file for full construction","CQIMTears"]
[2.11,"Trust Boards to assure themselves that at least 10 out of 11 Clinical Quality Improvement Metrics (CQIMs) have passed the associated data quality criteria on the national Maternity Services Dashboard for data submissions relating to activity in July 2023. ","CQIMDQ14\nCQIMDQ15\nCQIMDQ16\nCQIMDQ18\nCQIMDQ19\nCQIMDQ26\nCQIMDQ27\nCQIMDQ28\nSee metadata file for full construction","CQIMVBAC"]
[3,"Height and weight data, or a calculated Body Mass Index (BMI), recorded at the first antenatal booking appointment for 90% of women booked in the month.","TBC","Height/Weight/BMI"]
[4,"Complex Social Factor Indicator (at antenatal booking) data for 95% of women booked in the month.","Numerator: Number of MSD101 records in the reporting period and antenatal appointment in the reporting period where ComplexSocialFactorsInd is not null\nDenominator :  Number of MSD101 records in the reporting period and antenatal appointment in the reporting period","Complex Social Factors"]
[5.0999999999999996,"1.\tThe proportion (%) of women placed on a CoC pathway by the 28 weeks antenatal appointment, as measured at 29 weeks gestation \n2.\tThe proportion (%) of women receiving CoC ","See metadata file for full construction","Continuity of Carer"]
[5.2,"1.\tThe proportion (%) of women who have an antenatal care plan by 16+1 weeks gestation age (119 days) that also have a personalised care and support plan.\n2.\tThe proportion (%) of women who have a birth care plan by 34+1 week’s gestation age (245 days) that also have a personalised care and support plan.\n3.\tThe proportion (%) of women who have a postpartum care plan by 36+1 weeks gestation age (259 days) that also have a personalised care and support plan.","See metadata file for full construction","Personalised Care and Support Planning"]